Workbook

Sheet Base Algo Guide
B2: RUTC 2018 Algorithmic Statistical Arbitrage Case Base Algorithm
B5: Welcome to the RUTC 2018 Algorithmic Statistical Arbitrage Case!
B7: This is the base algorithm that you can use to learn how to:
B8: 1. Monitor your positions,
B9: 2. Monitor case time information,
B10: 3. Parse historical prices from news,
B11: 4. Calculate historical returns,
B12: 5. Calculate historical correlations,
B13: 6. Calculate historical volatilities and betas,
B14: 7. Pull current prices from RIT,
B15: 8. Calculate current PTD returns,
B16: 9. Forecast expected PTD returns using beta,
B17: 10. Calculate divergences,
B18: 11. Graph divergence over time,
B19: 12. Get real-time divergence information,
B20: 13. Calculate position limit exposure,
B21: 14. Configure your algo parameters, and
B22: 15. Switch on/off the base trading algorithm.
B24: You will be able to find the above numbered sections in the next worksheet named "Support Sheet"
B26: Please note that this base algorithm does not create "beta-neutral" positions.
B27: If you would like to enhance and improve this base algorithm, we recommend that you consider doing the following:
B28: 1. Finding out which stock(s) could be a good pair to trade (to create a beta-neutral position),
B29: 2. Calculate how much of the pair positions you should trade on to offset the market exposure,
B30: 3. Add a new algorithm, or modify the existing algorithm to implement the pair trading,
B31: 4. Improve the functionality to effectively manage net and gross position limit exposure, and
B32: 5. Modify the algorithm in order to dynamically change the order size depending on the size of the divergence (and convergence).

Sheet Support Sheet
B2: RUTC 2018 Algorithmic Statistical Arbitrage Case Base Algorithm
B5: 1. Portfolio | O5: 5. Historical Correlation | U5: 6. Historical Volatility and Beta
B6: Ticker | C6: Type | D6: Size | E6: Position | F6: Cost | G6: Last | H6: Bid | I6: Ask | J6: NLV | K6: PLREL | L6: PLUNR | M6: Volume | P6: RSM1000 | Q6: NGN | R6: WHEL | S6: GEAR | V6: RSM1000 | W6: NGN | X6: WHEL | Y6: GEAR
B7: RSM1000 | C7: =RTD("rit2.rtd",,$B7,C$6) -> INDEX | D7: =RTD("rit2.rtd",,$B7,D$6) -> 1 | E7: =RTD("rit2.rtd",,$B7,E$6) -> 0 | F7: =RTD("rit2.rtd",,$B7,F$6) -> 0 | G7: =RTD("rit2.rtd",,$B7,G$6) -> 99.58 | H7: =RTD("rit2.rtd",,$B7,H$6) -> 99.57 | I7: =RTD("rit2.rtd",,$B7,I$6) -> 99.59 | J7: =RTD("rit2.rtd",,$B7,J$6) -> 0 | K7: =RTD("rit2.rtd",,$B7,K$6) -> 0 | L7: =RTD("rit2.rtd",,$B7,L$6) -> 0 | M7: =RTD("rit2.rtd",,$B7,M$6) -> 0 | O7: RSM1000 | P7: 1 | Q7: =CORREL(K16:K313,L16:L313) -> 0.7713552762 | R7: =CORREL(K16:K313,M16:M313) -> 0.6749344553 | S7: =CORREL(K16:K313,N16:N313) -> -0.5865563562 | U7: Tick Vol. | V7: =_xlfn.STDEV.S(K16:K313) -> 0.005662933637 | W7: =_xlfn.STDEV.S(L16:L313) -> 0.004285349429 | X7: =_xlfn.STDEV.S(M16:M313) -> 0.003313827886 | Y7: =_xlfn.STDEV.S(N16:N313) -> 0.003066501735
B8: NGN | C8: =RTD("rit2.rtd",,$B8,C$6) -> STOCK | D8: =RTD("rit2.rtd",,$B8,D$6) -> 1 | E8: =RTD("rit2.rtd",,$B8,E$6) -> -5000 | F8: =RTD("rit2.rtd",,$B8,F$6) -> 24.94 | G8: =RTD("rit2.rtd",,$B8,G$6) -> 24.94 | H8: =RTD("rit2.rtd",,$B8,H$6) -> 24.94 | I8: =RTD("rit2.rtd",,$B8,I$6) -> 24.96 | J8: =RTD("rit2.rtd",,$B8,J$6) -> 0 | K8: =RTD("rit2.rtd",,$B8,K$6) -> 0 | L8: =RTD("rit2.rtd",,$B8,L$6) -> 124700 | M8: =RTD("rit2.rtd",,$B8,M$6) -> 0 | O8: NGN | Q8: 1 | R8: =CORREL(L16:L313,M16:M313) -> 0.5457838122 | S8: =CORREL(L16:L313,N16:N313) -> -0.4359083508 | U8: Beta | W8: =Q7*W7/V7 -> 0.5837128076 | X8: =R7*X7/V7 -> 0.3949572364 | Y8: =S7*Y7/V7 -> -0.3176226668
B9: WHEL | C9: =RTD("rit2.rtd",,$B9,C$6) -> STOCK | D9: =RTD("rit2.rtd",,$B9,D$6) -> 1 | E9: =RTD("rit2.rtd",,$B9,E$6) -> -5000 | F9: =RTD("rit2.rtd",,$B9,F$6) -> 24.99 | G9: =RTD("rit2.rtd",,$B9,G$6) -> 24.99 | H9: =RTD("rit2.rtd",,$B9,H$6) -> 24.99 | I9: =RTD("rit2.rtd",,$B9,I$6) -> 25.01 | J9: =RTD("rit2.rtd",,$B9,J$6) -> 0 | K9: =RTD("rit2.rtd",,$B9,K$6) -> 0 | L9: =RTD("rit2.rtd",,$B9,L$6) -> 124950 | M9: =RTD("rit2.rtd",,$B9,M$6) -> 0 | O9: WHEL | R9: 1 | S9: =CORREL(M16:M313,N16:N313) -> -0.4371745172
B10: GEAR | C10: =RTD("rit2.rtd",,$B10,C$6) -> STOCK | D10: =RTD("rit2.rtd",,$B10,D$6) -> 1 | E10: =RTD("rit2.rtd",,$B10,E$6) -> -5000 | F10: =RTD("rit2.rtd",,$B10,F$6) -> 25.13 | G10: =RTD("rit2.rtd",,$B10,G$6) -> 25.13 | H10: =RTD("rit2.rtd",,$B10,H$6) -> 25.13 | I10: =RTD("rit2.rtd",,$B10,I$6) -> 25.15 | J10: =RTD("rit2.rtd",,$B10,J$6) -> -125750 | K10: =RTD("rit2.rtd",,$B10,K$6) -> 0 | L10: =RTD("rit2.rtd",,$B10,L$6) -> -100 | M10: =RTD("rit2.rtd",,$B10,M$6) -> 0 | O10: GEAR | S10: 1
B12: 2. Time Info | F12: Historical Prices (parsed from News #2) | K12: 4. Historical Tick Returns | Q12: 7. Current Prices | U12: 8. Current PTD Return | Y12: 9. Projected PTD Return | AB12: 10. Divergence
B13: Total Ticks | D13: =RTD("rit2.rtd",,"periodtime") -> 300 | F13: =PARSERTD(C20) -> <table>Tick | G13: RSM1000 | H13: NGN | I13: WHEL | J13: GEAR | K13: RSM1000 | L13: NGN | M13: WHEL | N13: GEAR | P13: TICK | Q13: RSM1000 | R13: NGN | S13: WHEL | T13: GEAR | U13: RSM1000 | V13: NGN | W13: WHEL | X13: GEAR | Y13: NGN | Z13: WHEL | AA13: GEAR | AB13: NGN | AC13: WHEL | AD13: GEAR
B14: Time Remaining | D14: =RTD("rit2.rtd",,"TIMEREMAINING") -> 299 | F14: 0 | G14: 110.03 | H14: 26.97 | I14: 25.11 | J14: 24.62 | P14: 1 | Q14: =RTD("rit2.rtd",,Q$13, "lasthist", $P14) -> 99.58 | R14: =RTD("rit2.rtd",,R$13, "lasthist", $P14) -> 24.94 | S14: =RTD("rit2.rtd",,S$13, "lasthist", $P14) -> 24.99 | T14: =RTD("rit2.rtd",,T$13, "lasthist", $P14) -> 25.13
B15: Current Tick | D15: =D13-D14 -> 1 | F15: 1 | G15: 110.96 | H15: 27.07 | I15: 25.18 | J15: 24.49 | K15: =G15/G14-1 -> 0.008452240298 | L15: =H15/H14-1 -> 0.003707823508 | M15: 0.002787733971 | N15: -0.005280259951 | P15: 2 | Q15: =RTD("rit2.rtd",,Q$13, "lasthist", $P15) -> 0 | R15: =RTD("rit2.rtd",,R$13, "lasthist", $P15) -> 0 | S15: =RTD("rit2.rtd",,S$13, "lasthist", $P15) -> 0 | T15: =RTD("rit2.rtd",,T$13, "lasthist", $P15) -> 0 | U15: =IFERROR(IF(Q15=0, "", Q15/Q$14-1),"") ->  | V15: =IFERROR(IF(R15=0, "", R15/R$14-1),"") ->  | Y15: =IFERROR($U15*$W$8,"") ->  | Z15: =IFERROR($U15*$X$8,"") ->  | AA15: =IFERROR($U15*$Y$8,"") ->  | AB15: =IFERROR(V15-Y15,"") ->  | AC15: =IFERROR(W15-Z15,"") -> 
F16: 2 | G16: 110.69 | H16: 27 | I16: 25.06 | J16: 24.63 | K16: =G16/G15-1 -> -0.002433309301 | L16: =H16/H15-1 -> -0.002585888437 | M16: =I16/I15-1 -> -0.004765687053 | N16: =J16/J15-1 -> 0.005716619028 | P16: =P15+1 -> 3 | Q16: =RTD("rit2.rtd",,Q$13, "lasthist", $P16) -> 0 | R16: =RTD("rit2.rtd",,R$13, "lasthist", $P16) -> 0 | S16: =RTD("rit2.rtd",,S$13, "lasthist", $P16) -> 0 | T16: =RTD("rit2.rtd",,T$13, "lasthist", $P16) -> 0 | U16: =IFERROR(IF(Q16=0, "", Q16/Q$14-1),"") ->  | V16: =IFERROR(IF(R16=0, "", R16/R$14-1),"") ->  | W16: =IFERROR(IF(S16=0, "", S16/S$14-1),"") ->  | X16: =IFERROR(IF(T16=0, "", T16/T$14-1),"") ->  | AB16: =IFERROR(V16-Y16,"") ->  | AC16: =IFERROR(W16-Z16,"") ->  | AD16: =IFERROR(X16-AA16,"") -> 
B17: 3. News Parsing | F17: 3 | G17: 110.12 | H17: 26.91 | I17: 25.06 | J17: 24.68 | K17: -0.005149516668 | L17: -0.003333333333 | M17: 0 | N17: 0.002030044661 | P17: =P16+1 -> 4 | Q17: =RTD("rit2.rtd",,Q$13, "lasthist", $P17) -> 0 | R17: =RTD("rit2.rtd",,R$13, "lasthist", $P17) -> 0 | S17: =RTD("rit2.rtd",,S$13, "lasthist", $P17) -> 0 | T17: =RTD("rit2.rtd",,T$13, "lasthist", $P17) -> 0
B18: No. | C18: News | F18: 4 | G18: 110.13 | H18: 27 | I18: 25.07 | J18: 24.64 | K18: 9.081002543e-05 | L18: 0.003344481605 | M18: 0.0003990422985 | N18: -0.001620745543 | P18: 5 | Q18: =RTD("rit2.rtd",,Q$13, "lasthist", $P18) -> 0 | R18: =RTD("rit2.rtd",,R$13, "lasthist", $P18) -> 0 | S18: =RTD("rit2.rtd",,S$13, "lasthist", $P18) -> 0 | T18: =RTD("rit2.rtd",,T$13, "lasthist", $P18) -> 0 | AF18: 12. Live Divergence | AH18: NGN | AI18: WHEL | AJ18: GEAR
B19: 1 | C19: =RTD("rit2.rtd",,"NEWS",B19) -> 1,0,,Welcome to the RUTC 2018 Algorithmic Statistical Arbitrage Case,Please note that the market dynamics in this case (e.g. liquidity, spreads) might be different when there are several algos competing against each other. | F19: 5 | G19: 110.65 | H19: 27.14 | I19: 25.1 | J19: 24.57 | K19: 0.004721692545 | L19: 0.005185185185 | M19: 0.001196649382 | N19: -0.002840909091 | P19: 6 | Q19: =RTD("rit2.rtd",,Q$13, "lasthist", $P19) -> 0 | R19: =RTD("rit2.rtd",,R$13, "lasthist", $P19) -> 0 | S19: =RTD("rit2.rtd",,S$13, "lasthist", $P19) -> 0 | T19: =RTD("rit2.rtd",,T$13, "lasthist", $P19) -> 0 | AH19: =VLOOKUP($D$15,$P$13:$AD$313,13,FALSE) ->  | AI19: =VLOOKUP($D$15,$P$13:$AD$313,13,FALSE) ->  | AJ19: =VLOOKUP($D$15,$P$13:$AD$313,15,FALSE) -> 
B20: 2 | C20: =RTD("rit2.rtd",,"NEWS",B20) ->  | F20: 6 | G20: 110.5 | H20: 27.28 | I20: 24.96 | J20: 24.52 | K20: -0.001355625847 | L20: 0.00515843773 | M20: -0.005577689243 | N20: -0.002035002035 | P20: 7 | Q20: =RTD("rit2.rtd",,Q$13, "lasthist", $P20) -> 0 | R20: =RTD("rit2.rtd",,R$13, "lasthist", $P20) -> 0 | S20: =RTD("rit2.rtd",,S$13, "lasthist", $P20) -> 0 | T20: =RTD("rit2.rtd",,T$13, "lasthist", $P20) -> 0
F21: 7 | G21: 111.13 | H21: 27.4 | I21: 25.14 | J21: 24.49 | K21: 0.005701357466 | L21: 0.004398826979 | M21: 0.007211538462 | N21: -0.001223491028 | P21: 8 | Q21: =RTD("rit2.rtd",,Q$13, "lasthist", $P21) -> 0 | R21: =RTD("rit2.rtd",,R$13, "lasthist", $P21) -> 0 | S21: =RTD("rit2.rtd",,S$13, "lasthist", $P21) -> 0 | T21: =RTD("rit2.rtd",,T$13, "lasthist", $P21) -> 0 | AF21: 13. Position Management
F22: 8 | G22: 111.45 | H22: 27.42 | I22: 25.2 | J22: 24.47 | K22: 0.002879510483 | L22: 0.0007299270073 | M22: 0.002386634845 | N22: -0.0008166598612 | P22: 9 | Q22: =RTD("rit2.rtd",,Q$13, "lasthist", $P22) -> 0 | R22: =RTD("rit2.rtd",,R$13, "lasthist", $P22) -> 0 | S22: =RTD("rit2.rtd",,S$13, "lasthist", $P22) -> 0 | T22: =RTD("rit2.rtd",,T$13, "lasthist", $P22) -> 0 | AF22: Gross Limit Exposure | AH22: =ABS(ngn_position)+ABS(whel_position)+ABS(gear_position) -> 15000
F23: 9 | G23: 111.87 | H23: 27.43 | I23: 25.12 | J23: 24.57 | K23: 0.003768506057 | L23: 0.0003646973012 | M23: -0.003174603175 | N23: 0.004086636698 | P23: 10 | Q23: =RTD("rit2.rtd",,Q$13, "lasthist", $P23) -> 0 | R23: =RTD("rit2.rtd",,R$13, "lasthist", $P23) -> 0 | S23: =RTD("rit2.rtd",,S$13, "lasthist", $P23) -> 0 | T23: =RTD("rit2.rtd",,T$13, "lasthist", $P23) -> 0 | AF23: Gross limit | AH23: 500000
F24: 10 | G24: 111.89 | H24: 27.36 | I24: 24.97 | J24: 24.54 | K24: 0.0001787789398 | L24: -0.002551950419 | M24: -0.00597133758 | N24: -0.001221001221 | P24: 11 | Q24: =RTD("rit2.rtd",,Q$13, "lasthist", $P24) -> 0 | R24: =RTD("rit2.rtd",,R$13, "lasthist", $P24) -> 0 | S24: =RTD("rit2.rtd",,S$13, "lasthist", $P24) -> 0 | T24: =RTD("rit2.rtd",,T$13, "lasthist", $P24) -> 0 | AF24: Net Limit Exposure | AH24: =ngn_position+whel_position+gear_position -> -15000
F25: 11 | G25: 112.18 | H25: 27.34 | I25: 24.95 | J25: 24.58 | K25: 0.002591831263 | L25: -0.000730994152 | M25: -0.0008009611534 | N25: 0.00162999185 | P25: 12 | Q25: =RTD("rit2.rtd",,Q$13, "lasthist", $P25) -> 0 | R25: =RTD("rit2.rtd",,R$13, "lasthist", $P25) -> 0 | S25: =RTD("rit2.rtd",,S$13, "lasthist", $P25) -> 0 | T25: =RTD("rit2.rtd",,T$13, "lasthist", $P25) -> 0 | AF25: Let Limit | AH25: 100000
F26: 12 | G26: 111.85 | H26: 27.39 | I26: 24.89 | J26: 24.66 | K26: -0.002941700838 | L26: 0.001828822238 | M26: -0.002404809619 | N26: 0.0032546786 | P26: 13 | Q26: =RTD("rit2.rtd",,Q$13, "lasthist", $P26) -> 0 | R26: =RTD("rit2.rtd",,R$13, "lasthist", $P26) -> 0 | S26: =RTD("rit2.rtd",,S$13, "lasthist", $P26) -> 0 | T26: =RTD("rit2.rtd",,T$13, "lasthist", $P26) -> 0
F27: 13 | G27: 112.57 | H27: 27.5 | I27: 24.98 | J27: 24.69 | K27: 0.006437192669 | L27: 0.004016064257 | M27: 0.003615910004 | N27: 0.001216545012 | P27: 14 | Q27: =RTD("rit2.rtd",,Q$13, "lasthist", $P27) -> 0 | R27: =RTD("rit2.rtd",,R$13, "lasthist", $P27) -> 0 | S27: =RTD("rit2.rtd",,S$13, "lasthist", $P27) -> 0 | T27: =RTD("rit2.rtd",,T$13, "lasthist", $P27) -> 0 | AF27: 14. Algo Setting
F28: 14 | G28: 113.09 | H28: 27.46 | I28: 24.98 | J28: 24.69 | K28: 0.004619347961 | L28: -0.001454545455 | M28: 0 | N28: 0 | P28: 15 | Q28: =RTD("rit2.rtd",,Q$13, "lasthist", $P28) -> 0 | R28: =RTD("rit2.rtd",,R$13, "lasthist", $P28) -> 0 | S28: =RTD("rit2.rtd",,S$13, "lasthist", $P28) -> 0 | T28: =RTD("rit2.rtd",,T$13, "lasthist", $P28) -> 0 | AF28: Max Trade Size | AH28: 10000
F29: 15 | G29: 112.93 | H29: 27.48 | I29: 24.97 | J29: 24.63 | K29: -0.00141480237 | L29: 0.0007283321194 | M29: -0.0004003202562 | N29: -0.002430133657 | P29: 16 | Q29: =RTD("rit2.rtd",,Q$13, "lasthist", $P29) -> 0 | R29: =RTD("rit2.rtd",,R$13, "lasthist", $P29) -> 0 | S29: =RTD("rit2.rtd",,S$13, "lasthist", $P29) -> 0 | T29: =RTD("rit2.rtd",,T$13, "lasthist", $P29) -> 0 | AF29: Min Divergence | AH29: 0.01
F30: 16 | G30: 113.3 | H30: 27.5 | I30: 25 | J30: 24.63 | K30: 0.00327636589 | L30: 0.0007278020378 | M30: 0.00120144173 | N30: 0 | P30: 17 | Q30: =RTD("rit2.rtd",,Q$13, "lasthist", $P30) -> 0 | R30: =RTD("rit2.rtd",,R$13, "lasthist", $P30) -> 0 | S30: =RTD("rit2.rtd",,S$13, "lasthist", $P30) -> 0 | T30: =RTD("rit2.rtd",,T$13, "lasthist", $P30) -> 0 | AF30: Order Size | AH30: 5000
F31: 17 | G31: 114.97 | H31: 27.8 | I31: 25.17 | J31: 24.56 | K31: 0.0147396293 | L31: 0.01090909091 | M31: 0.0068 | N31: -0.002842062525 | P31: 18 | Q31: =RTD("rit2.rtd",,Q$13, "lasthist", $P31) -> 0 | R31: =RTD("rit2.rtd",,R$13, "lasthist", $P31) -> 0 | S31: =RTD("rit2.rtd",,S$13, "lasthist", $P31) -> 0 | T31: =RTD("rit2.rtd",,T$13, "lasthist", $P31) -> 0
F32: 18 | G32: 114.78 | H32: 27.62 | I32: 25.12 | J32: 24.59 | K32: -0.001652605027 | L32: -0.006474820144 | M32: -0.001986491855 | N32: 0.001221498371 | P32: 19 | Q32: =RTD("rit2.rtd",,Q$13, "lasthist", $P32) -> 0 | R32: =RTD("rit2.rtd",,R$13, "lasthist", $P32) -> 0 | S32: =RTD("rit2.rtd",,S$13, "lasthist", $P32) -> 0 | T32: =RTD("rit2.rtd",,T$13, "lasthist", $P32) -> 0 | AF32: 15. Link Algos
F33: 19 | G33: 113.56 | H33: 27.37 | I33: 25 | J33: 24.69 | K33: -0.01062902945 | L33: -0.00905141202 | M33: -0.004777070064 | N33: 0.004066693778 | P33: 20 | Q33: =RTD("rit2.rtd",,Q$13, "lasthist", $P33) -> 0 | R33: =RTD("rit2.rtd",,R$13, "lasthist", $P33) -> 0 | S33: =RTD("rit2.rtd",,S$13, "lasthist", $P33) -> 0 | T33: =RTD("rit2.rtd",,T$13, "lasthist", $P33) -> 0 | AF33: NGN Algo
F34: 20 | G34: 113.7 | H34: 27.41 | I34: 24.92 | J34: 24.72 | K34: 0.001232828461 | L34: 0.001461454147 | M34: -0.0032 | N34: 0.001215066829 | P34: 21 | Q34: =RTD("rit2.rtd",,Q$13, "lasthist", $P34) -> 0 | R34: =RTD("rit2.rtd",,R$13, "lasthist", $P34) -> 0 | S34: =RTD("rit2.rtd",,S$13, "lasthist", $P34) -> 0 | T34: =RTD("rit2.rtd",,T$13, "lasthist", $P34) -> 0 | AF34: On | AG34: =IF(AF34="On",arb(D15,B8),"N/A") -> 0
F35: 21 | G35: 113.76 | H35: 27.46 | I35: 24.95 | J35: 24.7 | K35: 0.0005277044855 | L35: 0.001824151769 | M35: 0.001203852327 | N35: -0.0008090614887 | P35: 22 | Q35: =RTD("rit2.rtd",,Q$13, "lasthist", $P35) -> 0 | R35: =RTD("rit2.rtd",,R$13, "lasthist", $P35) -> 0 | S35: =RTD("rit2.rtd",,S$13, "lasthist", $P35) -> 0 | T35: =RTD("rit2.rtd",,T$13, "lasthist", $P35) -> 0 | AF35: WHEL Algo
F36: 22 | G36: 114.21 | H36: 27.42 | I36: 24.95 | J36: 24.68 | K36: 0.003955696203 | L36: -0.001456664239 | M36: 0 | N36: -0.0008097165992 | P36: 23 | Q36: =RTD("rit2.rtd",,Q$13, "lasthist", $P36) -> 0 | R36: =RTD("rit2.rtd",,R$13, "lasthist", $P36) -> 0 | S36: =RTD("rit2.rtd",,S$13, "lasthist", $P36) -> 0 | T36: =RTD("rit2.rtd",,T$13, "lasthist", $P36) -> 0 | AF36: On | AG36: =IF(AF36="On",arb(D15,B9),"N/A") -> 0
F37: 23 | G37: 113.86 | H37: 27.47 | I37: 24.91 | J37: 24.65 | K37: -0.003064530251 | L37: 0.001823486506 | M37: -0.001603206413 | N37: -0.001215559157 | P37: 24 | Q37: =RTD("rit2.rtd",,Q$13, "lasthist", $P37) -> 0 | R37: =RTD("rit2.rtd",,R$13, "lasthist", $P37) -> 0 | S37: =RTD("rit2.rtd",,S$13, "lasthist", $P37) -> 0 | T37: =RTD("rit2.rtd",,T$13, "lasthist", $P37) -> 0 | AF37: GEAR Algo
F38: 24 | G38: 113.57 | H38: 27.4 | I38: 24.94 | J38: 24.72 | K38: -0.002546987529 | L38: -0.002548234438 | M38: 0.001204335608 | N38: 0.002839756592 | P38: 25 | Q38: =RTD("rit2.rtd",,Q$13, "lasthist", $P38) -> 0 | R38: =RTD("rit2.rtd",,R$13, "lasthist", $P38) -> 0 | S38: =RTD("rit2.rtd",,S$13, "lasthist", $P38) -> 0 | T38: =RTD("rit2.rtd",,T$13, "lasthist", $P38) -> 0 | AF38: On | AG38: =IF(AF38="On",arb(D15,B10),"N/A") -> 0
F39: 25 | G39: 113.69 | H39: 27.44 | I39: 24.96 | J39: 24.75 | K39: 0.001056617064 | L39: 0.001459854015 | M39: 0.0008019246191 | N39: 0.001213592233 | P39: 26 | Q39: =RTD("rit2.rtd",,Q$13, "lasthist", $P39) -> 0 | R39: =RTD("rit2.rtd",,R$13, "lasthist", $P39) -> 0 | S39: =RTD("rit2.rtd",,S$13, "lasthist", $P39) -> 0 | T39: =RTD("rit2.rtd",,T$13, "lasthist", $P39) -> 0
F40: 26 | G40: 113.94 | H40: 27.47 | I40: 25.09 | J40: 24.81 | K40: 0.00219896209 | L40: 0.001093294461 | M40: 0.005208333333 | N40: 0.002424242424 | P40: 27 | Q40: =RTD("rit2.rtd",,Q$13, "lasthist", $P40) -> 0 | R40: =RTD("rit2.rtd",,R$13, "lasthist", $P40) -> 0 | S40: =RTD("rit2.rtd",,S$13, "lasthist", $P40) -> 0 | T40: =RTD("rit2.rtd",,T$13, "lasthist", $P40) -> 0
F41: 27 | G41: 115.22 | H41: 27.6 | I41: 25.11 | J41: 24.73 | K41: 0.0112339828 | L41: 0.004732435384 | M41: 0.0007971303308 | N41: -0.003224506247 | P41: 28 | Q41: =RTD("rit2.rtd",,Q$13, "lasthist", $P41) -> 0 | R41: =RTD("rit2.rtd",,R$13, "lasthist", $P41) -> 0 | S41: =RTD("rit2.rtd",,S$13, "lasthist", $P41) -> 0 | T41: =RTD("rit2.rtd",,T$13, "lasthist", $P41) -> 0
F42: 28 | G42: 113.97 | H42: 27.41 | I42: 25 | J42: 24.79 | K42: -0.01084881097 | L42: -0.006884057971 | M42: -0.004380724811 | N42: 0.002426202992 | P42: 29 | Q42: =RTD("rit2.rtd",,Q$13, "lasthist", $P42) -> 0 | R42: =RTD("rit2.rtd",,R$13, "lasthist", $P42) -> 0 | S42: =RTD("rit2.rtd",,S$13, "lasthist", $P42) -> 0 | T42: =RTD("rit2.rtd",,T$13, "lasthist", $P42) -> 0
F43: 29 | G43: 113.85 | H43: 27.42 | I43: 25.03 | J43: 24.88 | K43: -0.00105290866 | L43: 0.0003648303539 | M43: 0.0012 | N43: 0.003630496168 | P43: 30 | Q43: =RTD("rit2.rtd",,Q$13, "lasthist", $P43) -> 0 | R43: =RTD("rit2.rtd",,R$13, "lasthist", $P43) -> 0 | S43: =RTD("rit2.rtd",,S$13, "lasthist", $P43) -> 0 | T43: =RTD("rit2.rtd",,T$13, "lasthist", $P43) -> 0
F44: 30 | G44: 113.87 | H44: 27.51 | I44: 25.11 | J44: 24.96 | K44: 0.0001756697409 | L44: 0.003282275711 | M44: 0.003196164602 | N44: 0.003215434084 | P44: 31 | Q44: =RTD("rit2.rtd",,Q$13, "lasthist", $P44) -> 0 | R44: =RTD("rit2.rtd",,R$13, "lasthist", $P44) -> 0 | S44: =RTD("rit2.rtd",,S$13, "lasthist", $P44) -> 0 | T44: =RTD("rit2.rtd",,T$13, "lasthist", $P44) -> 0
F45: 31 | G45: 112.36 | H45: 27.45 | I45: 24.94 | J45: 25.06 | K45: -0.01326073593 | L45: -0.002181025082 | M45: -0.006770211071 | N45: 0.004006410256 | P45: 32 | Q45: =RTD("rit2.rtd",,Q$13, "lasthist", $P45) -> 0 | R45: =RTD("rit2.rtd",,R$13, "lasthist", $P45) -> 0 | S45: =RTD("rit2.rtd",,S$13, "lasthist", $P45) -> 0 | T45: =RTD("rit2.rtd",,T$13, "lasthist", $P45) -> 0
F46: 32 | G46: 112.5 | H46: 27.42 | I46: 24.91 | J46: 25.03 | K46: 0.001245995016 | L46: -0.001092896175 | M46: -0.001202886929 | N46: -0.001197126895 | P46: 33 | Q46: =RTD("rit2.rtd",,Q$13, "lasthist", $P46) -> 0 | R46: =RTD("rit2.rtd",,R$13, "lasthist", $P46) -> 0 | S46: =RTD("rit2.rtd",,S$13, "lasthist", $P46) -> 0 | T46: =RTD("rit2.rtd",,T$13, "lasthist", $P46) -> 0
F47: 33 | G47: 112.6 | H47: 27.5 | I47: 24.92 | J47: 25.04 | K47: 0.0008888888889 | L47: 0.00291757841 | M47: 0.0004014452027 | N47: 0.0003995205753 | P47: 34 | Q47: =RTD("rit2.rtd",,Q$13, "lasthist", $P47) -> 0 | R47: =RTD("rit2.rtd",,R$13, "lasthist", $P47) -> 0 | S47: =RTD("rit2.rtd",,S$13, "lasthist", $P47) -> 0 | T47: =RTD("rit2.rtd",,T$13, "lasthist", $P47) -> 0
F48: 34 | G48: 111.97 | H48: 27.42 | I48: 24.82 | J48: 25.04 | K48: -0.005595026643 | L48: -0.002909090909 | M48: -0.004012841091 | N48: 0 | P48: 35 | Q48: =RTD("rit2.rtd",,Q$13, "lasthist", $P48) -> 0 | R48: =RTD("rit2.rtd",,R$13, "lasthist", $P48) -> 0 | S48: =RTD("rit2.rtd",,S$13, "lasthist", $P48) -> 0 | T48: =RTD("rit2.rtd",,T$13, "lasthist", $P48) -> 0
F49: 35 | G49: 111.38 | H49: 27.45 | I49: 24.77 | J49: 25.03 | K49: -0.005269268554 | L49: 0.001094091904 | M49: -0.002014504432 | N49: -0.0003993610224 | P49: 36 | Q49: =RTD("rit2.rtd",,Q$13, "lasthist", $P49) -> 0 | R49: =RTD("rit2.rtd",,R$13, "lasthist", $P49) -> 0 | S49: =RTD("rit2.rtd",,S$13, "lasthist", $P49) -> 0 | T49: =RTD("rit2.rtd",,T$13, "lasthist", $P49) -> 0
F50: 36 | G50: 111.91 | H50: 27.52 | I50: 24.93 | J50: 25.08 | K50: 0.004758484468 | L50: 0.002550091075 | M50: 0.006459426726 | N50: 0.001997602877 | P50: 37 | Q50: =RTD("rit2.rtd",,Q$13, "lasthist", $P50) -> 0 | R50: =RTD("rit2.rtd",,R$13, "lasthist", $P50) -> 0 | S50: =RTD("rit2.rtd",,S$13, "lasthist", $P50) -> 0 | T50: =RTD("rit2.rtd",,T$13, "lasthist", $P50) -> 0
F51: 37 | G51: 111.39 | H51: 27.44 | I51: 24.89 | J51: 25.12 | K51: -0.004646591011 | L51: -0.002906976744 | M51: -0.001604492579 | N51: 0.001594896332 | P51: 38 | Q51: =RTD("rit2.rtd",,Q$13, "lasthist", $P51) -> 0 | R51: =RTD("rit2.rtd",,R$13, "lasthist", $P51) -> 0 | S51: =RTD("rit2.rtd",,S$13, "lasthist", $P51) -> 0 | T51: =RTD("rit2.rtd",,T$13, "lasthist", $P51) -> 0
F52: 38 | G52: 111.34 | H52: 27.36 | I52: 24.93 | J52: 25.12 | K52: -0.0004488733279 | L52: -0.002915451895 | M52: 0.001607071113 | N52: 0 | P52: 39 | Q52: =RTD("rit2.rtd",,Q$13, "lasthist", $P52) -> 0 | R52: =RTD("rit2.rtd",,R$13, "lasthist", $P52) -> 0 | S52: =RTD("rit2.rtd",,S$13, "lasthist", $P52) -> 0 | T52: =RTD("rit2.rtd",,T$13, "lasthist", $P52) -> 0
F53: 39 | G53: 111.43 | H53: 27.4 | I53: 24.95 | J53: 25.13 | K53: 0.0008083348302 | L53: 0.001461988304 | M53: 0.0008022462896 | N53: 0.000398089172 | P53: 40 | Q53: =RTD("rit2.rtd",,Q$13, "lasthist", $P53) -> 0 | R53: =RTD("rit2.rtd",,R$13, "lasthist", $P53) -> 0 | S53: =RTD("rit2.rtd",,S$13, "lasthist", $P53) -> 0 | T53: =RTD("rit2.rtd",,T$13, "lasthist", $P53) -> 0
F54: 40 | G54: 111.15 | H54: 27.37 | I54: 24.95 | J54: 25.18 | K54: -0.002512788298 | L54: -0.001094890511 | M54: 0 | N54: 0.0019896538 | P54: 41 | Q54: =RTD("rit2.rtd",,Q$13, "lasthist", $P54) -> 0 | R54: =RTD("rit2.rtd",,R$13, "lasthist", $P54) -> 0 | S54: =RTD("rit2.rtd",,S$13, "lasthist", $P54) -> 0 | T54: =RTD("rit2.rtd",,T$13, "lasthist", $P54) -> 0
F55: 41 | G55: 109.87 | H55: 27.16 | I55: 24.88 | J55: 25.12 | K55: -0.01151596941 | L55: -0.007672634271 | M55: -0.002805611222 | N55: -0.002382843527 | P55: 42 | Q55: =RTD("rit2.rtd",,Q$13, "lasthist", $P55) -> 0 | R55: =RTD("rit2.rtd",,R$13, "lasthist", $P55) -> 0 | S55: =RTD("rit2.rtd",,S$13, "lasthist", $P55) -> 0 | T55: =RTD("rit2.rtd",,T$13, "lasthist", $P55) -> 0
F56: 42 | G56: 110.96 | H56: 27.19 | I56: 25 | J56: 24.94 | K56: 0.009920815509 | L56: 0.001104565538 | M56: 0.004823151125 | N56: -0.007165605096 | P56: 43 | Q56: =RTD("rit2.rtd",,Q$13, "lasthist", $P56) -> 0 | R56: =RTD("rit2.rtd",,R$13, "lasthist", $P56) -> 0 | S56: =RTD("rit2.rtd",,S$13, "lasthist", $P56) -> 0 | T56: =RTD("rit2.rtd",,T$13, "lasthist", $P56) -> 0
F57: 43 | G57: 109.68 | H57: 27.13 | I57: 25.02 | J57: 25.07 | K57: -0.01153568854 | L57: -0.002206693637 | M57: 0.0008 | N57: 0.005212510024 | P57: 44 | Q57: =RTD("rit2.rtd",,Q$13, "lasthist", $P57) -> 0 | R57: =RTD("rit2.rtd",,R$13, "lasthist", $P57) -> 0 | S57: =RTD("rit2.rtd",,S$13, "lasthist", $P57) -> 0 | T57: =RTD("rit2.rtd",,T$13, "lasthist", $P57) -> 0
F58: 44 | G58: 109.82 | H58: 27.15 | I58: 25.02 | J58: 25.02 | K58: 0.001276440554 | L58: 0.0007371913011 | M58: 0 | N58: -0.001994415636 | P58: 45 | Q58: =RTD("rit2.rtd",,Q$13, "lasthist", $P58) -> 0 | R58: =RTD("rit2.rtd",,R$13, "lasthist", $P58) -> 0 | S58: =RTD("rit2.rtd",,S$13, "lasthist", $P58) -> 0 | T58: =RTD("rit2.rtd",,T$13, "lasthist", $P58) -> 0
F59: 45 | G59: 109.35 | H59: 27.05 | I59: 25.1 | J59: 25.08 | K59: -0.004279730468 | L59: -0.003683241252 | M59: 0.003197442046 | N59: 0.002398081535 | P59: 46 | Q59: =RTD("rit2.rtd",,Q$13, "lasthist", $P59) -> 0 | R59: =RTD("rit2.rtd",,R$13, "lasthist", $P59) -> 0 | S59: =RTD("rit2.rtd",,S$13, "lasthist", $P59) -> 0 | T59: =RTD("rit2.rtd",,T$13, "lasthist", $P59) -> 0
F60: 46 | G60: 109.27 | H60: 27.21 | I60: 25.09 | J60: 25.04 | K60: -0.0007315957933 | L60: 0.005914972274 | M60: -0.0003984063745 | N60: -0.001594896332 | P60: 47 | Q60: =RTD("rit2.rtd",,Q$13, "lasthist", $P60) -> 0 | R60: =RTD("rit2.rtd",,R$13, "lasthist", $P60) -> 0 | S60: =RTD("rit2.rtd",,S$13, "lasthist", $P60) -> 0 | T60: =RTD("rit2.rtd",,T$13, "lasthist", $P60) -> 0
F61: 47 | G61: 109.74 | H61: 27.26 | I61: 25.16 | J61: 25.08 | K61: 0.004301272078 | L61: 0.001837559721 | M61: 0.002789956158 | N61: 0.001597444089 | P61: 48 | Q61: =RTD("rit2.rtd",,Q$13, "lasthist", $P61) -> 0 | R61: =RTD("rit2.rtd",,R$13, "lasthist", $P61) -> 0 | S61: =RTD("rit2.rtd",,S$13, "lasthist", $P61) -> 0 | T61: =RTD("rit2.rtd",,T$13, "lasthist", $P61) -> 0
F62: 48 | G62: 109.03 | H62: 27.16 | I62: 25.17 | J62: 25.07 | K62: -0.006469837798 | L62: -0.003668378577 | M62: 0.0003974562798 | N62: -0.0003987240829 | P62: 49 | Q62: =RTD("rit2.rtd",,Q$13, "lasthist", $P62) -> 0 | R62: =RTD("rit2.rtd",,R$13, "lasthist", $P62) -> 0 | S62: =RTD("rit2.rtd",,S$13, "lasthist", $P62) -> 0 | T62: =RTD("rit2.rtd",,T$13, "lasthist", $P62) -> 0
F63: 49 | G63: 109.64 | H63: 27.2 | I63: 25.31 | J63: 25.03 | K63: 0.005594790425 | L63: 0.00147275405 | M63: 0.005562177195 | N63: -0.001595532509 | P63: 50 | Q63: =RTD("rit2.rtd",,Q$13, "lasthist", $P63) -> 0 | R63: =RTD("rit2.rtd",,R$13, "lasthist", $P63) -> 0 | S63: =RTD("rit2.rtd",,S$13, "lasthist", $P63) -> 0 | T63: =RTD("rit2.rtd",,T$13, "lasthist", $P63) -> 0
F64: 50 | G64: 110.11 | H64: 27.18 | I64: 25.41 | J64: 25 | K64: 0.004286756658 | L64: -0.0007352941176 | M64: 0.003951007507 | N64: -0.001198561726 | P64: 51 | Q64: =RTD("rit2.rtd",,Q$13, "lasthist", $P64) -> 0 | R64: =RTD("rit2.rtd",,R$13, "lasthist", $P64) -> 0 | S64: =RTD("rit2.rtd",,S$13, "lasthist", $P64) -> 0 | T64: =RTD("rit2.rtd",,T$13, "lasthist", $P64) -> 0
F65: 51 | G65: 110.3 | H65: 27.28 | I65: 25.44 | J65: 25.11 | K65: 0.00172554718 | L65: 0.003679175865 | M65: 0.001180637544 | N65: 0.0044 | P65: 52 | Q65: =RTD("rit2.rtd",,Q$13, "lasthist", $P65) -> 0 | R65: =RTD("rit2.rtd",,R$13, "lasthist", $P65) -> 0 | S65: =RTD("rit2.rtd",,S$13, "lasthist", $P65) -> 0 | T65: =RTD("rit2.rtd",,T$13, "lasthist", $P65) -> 0
F66: 52 | G66: 111.09 | H66: 27.49 | I66: 25.49 | J66: 24.95 | K66: 0.007162284678 | L66: 0.007697947214 | M66: 0.001965408805 | N66: -0.006371963361 | P66: 53 | Q66: =RTD("rit2.rtd",,Q$13, "lasthist", $P66) -> 0 | R66: =RTD("rit2.rtd",,R$13, "lasthist", $P66) -> 0 | S66: =RTD("rit2.rtd",,S$13, "lasthist", $P66) -> 0 | T66: =RTD("rit2.rtd",,T$13, "lasthist", $P66) -> 0
F67: 53 | G67: 110.27 | H67: 27.42 | I67: 25.46 | J67: 24.99 | K67: -0.007381402466 | L67: -0.002546380502 | M67: -0.00117693213 | N67: 0.001603206413 | P67: 54 | Q67: =RTD("rit2.rtd",,Q$13, "lasthist", $P67) -> 0 | R67: =RTD("rit2.rtd",,R$13, "lasthist", $P67) -> 0 | S67: =RTD("rit2.rtd",,S$13, "lasthist", $P67) -> 0 | T67: =RTD("rit2.rtd",,T$13, "lasthist", $P67) -> 0
F68: 54 | G68: 110.34 | H68: 27.4 | I68: 25.48 | J68: 24.98 | K68: 0.0006348054775 | L68: -0.0007293946025 | M68: 0.0007855459544 | N68: -0.000400160064 | P68: 55 | Q68: =RTD("rit2.rtd",,Q$13, "lasthist", $P68) -> 0 | R68: =RTD("rit2.rtd",,R$13, "lasthist", $P68) -> 0 | S68: =RTD("rit2.rtd",,S$13, "lasthist", $P68) -> 0 | T68: =RTD("rit2.rtd",,T$13, "lasthist", $P68) -> 0
F69: 55 | G69: 110.8 | H69: 27.55 | I69: 25.53 | J69: 24.86 | K69: 0.004168932391 | L69: 0.005474452555 | M69: 0.001962323391 | N69: -0.004803843074 | P69: 56 | Q69: =RTD("rit2.rtd",,Q$13, "lasthist", $P69) -> 0 | R69: =RTD("rit2.rtd",,R$13, "lasthist", $P69) -> 0 | S69: =RTD("rit2.rtd",,S$13, "lasthist", $P69) -> 0 | T69: =RTD("rit2.rtd",,T$13, "lasthist", $P69) -> 0
F70: 56 | G70: 110.74 | H70: 27.52 | I70: 25.48 | J70: 24.94 | K70: -0.0005415162455 | L70: -0.00108892922 | M70: -0.001958480219 | N70: 0.003218020917 | P70: 57 | Q70: =RTD("rit2.rtd",,Q$13, "lasthist", $P70) -> 0 | R70: =RTD("rit2.rtd",,R$13, "lasthist", $P70) -> 0 | S70: =RTD("rit2.rtd",,S$13, "lasthist", $P70) -> 0 | T70: =RTD("rit2.rtd",,T$13, "lasthist", $P70) -> 0
F71: 57 | G71: 111.36 | H71: 27.61 | I71: 25.52 | J71: 24.96 | K71: 0.005598699657 | L71: 0.003270348837 | M71: 0.001569858713 | N71: 0.0008019246191 | P71: 58 | Q71: =RTD("rit2.rtd",,Q$13, "lasthist", $P71) -> 0 | R71: =RTD("rit2.rtd",,R$13, "lasthist", $P71) -> 0 | S71: =RTD("rit2.rtd",,S$13, "lasthist", $P71) -> 0 | T71: =RTD("rit2.rtd",,T$13, "lasthist", $P71) -> 0
F72: 58 | G72: 111.53 | H72: 27.46 | I72: 25.63 | J72: 24.92 | K72: 0.00152658046 | L72: -0.005432814198 | M72: 0.004310344828 | N72: -0.001602564103 | P72: 59 | Q72: =RTD("rit2.rtd",,Q$13, "lasthist", $P72) -> 0 | R72: =RTD("rit2.rtd",,R$13, "lasthist", $P72) -> 0 | S72: =RTD("rit2.rtd",,S$13, "lasthist", $P72) -> 0 | T72: =RTD("rit2.rtd",,T$13, "lasthist", $P72) -> 0
F73: 59 | G73: 111.23 | H73: 27.47 | I73: 25.63 | J73: 24.92 | K73: -0.002689859231 | L73: 0.0003641660597 | M73: 0 | N73: 0 | P73: 60 | Q73: =RTD("rit2.rtd",,Q$13, "lasthist", $P73) -> 0 | R73: =RTD("rit2.rtd",,R$13, "lasthist", $P73) -> 0 | S73: =RTD("rit2.rtd",,S$13, "lasthist", $P73) -> 0 | T73: =RTD("rit2.rtd",,T$13, "lasthist", $P73) -> 0
F74: 60 | G74: 110.61 | H74: 27.26 | I74: 25.64 | J74: 24.98 | K74: -0.005574035782 | L74: -0.007644703313 | M74: 0.0003901677721 | N74: 0.002407704655 | P74: 61 | Q74: =RTD("rit2.rtd",,Q$13, "lasthist", $P74) -> 0 | R74: =RTD("rit2.rtd",,R$13, "lasthist", $P74) -> 0 | S74: =RTD("rit2.rtd",,S$13, "lasthist", $P74) -> 0 | T74: =RTD("rit2.rtd",,T$13, "lasthist", $P74) -> 0
F75: 61 | G75: 110.92 | H75: 27.13 | I75: 25.65 | J75: 24.96 | K75: 0.002802639906 | L75: -0.00476889215 | M75: 0.0003900156006 | N75: -0.0008006405124 | P75: 62 | Q75: =RTD("rit2.rtd",,Q$13, "lasthist", $P75) -> 0 | R75: =RTD("rit2.rtd",,R$13, "lasthist", $P75) -> 0 | S75: =RTD("rit2.rtd",,S$13, "lasthist", $P75) -> 0 | T75: =RTD("rit2.rtd",,T$13, "lasthist", $P75) -> 0
F76: 62 | G76: 110 | H76: 27.09 | I76: 25.63 | J76: 24.93 | K76: -0.008294266138 | L76: -0.001474382602 | M76: -0.0007797270955 | N76: -0.001201923077 | P76: 63 | Q76: =RTD("rit2.rtd",,Q$13, "lasthist", $P76) -> 0 | R76: =RTD("rit2.rtd",,R$13, "lasthist", $P76) -> 0 | S76: =RTD("rit2.rtd",,S$13, "lasthist", $P76) -> 0 | T76: =RTD("rit2.rtd",,T$13, "lasthist", $P76) -> 0
F77: 63 | G77: 109.35 | H77: 26.97 | I77: 25.55 | J77: 24.95 | K77: -0.005909090909 | L77: -0.004429678848 | M77: -0.003121342177 | N77: 0.0008022462896 | P77: 64 | Q77: =RTD("rit2.rtd",,Q$13, "lasthist", $P77) -> 0 | R77: =RTD("rit2.rtd",,R$13, "lasthist", $P77) -> 0 | S77: =RTD("rit2.rtd",,S$13, "lasthist", $P77) -> 0 | T77: =RTD("rit2.rtd",,T$13, "lasthist", $P77) -> 0
F78: 64 | G78: 109.53 | H78: 27.05 | I78: 25.63 | J78: 24.78 | K78: 0.001646090535 | L78: 0.002966258806 | M78: 0.00313111546 | N78: -0.006813627255 | P78: 65 | Q78: =RTD("rit2.rtd",,Q$13, "lasthist", $P78) -> 0 | R78: =RTD("rit2.rtd",,R$13, "lasthist", $P78) -> 0 | S78: =RTD("rit2.rtd",,S$13, "lasthist", $P78) -> 0 | T78: =RTD("rit2.rtd",,T$13, "lasthist", $P78) -> 0
F79: 65 | G79: 109.04 | H79: 26.9 | I79: 25.64 | J79: 24.85 | K79: -0.004473660184 | L79: -0.005545286506 | M79: 0.0003901677721 | N79: 0.002824858757 | P79: 66 | Q79: =RTD("rit2.rtd",,Q$13, "lasthist", $P79) -> 0 | R79: =RTD("rit2.rtd",,R$13, "lasthist", $P79) -> 0 | S79: =RTD("rit2.rtd",,S$13, "lasthist", $P79) -> 0 | T79: =RTD("rit2.rtd",,T$13, "lasthist", $P79) -> 0 | Y79: =IFERROR($U79*$W$8,"") ->  | Z79: =IFERROR($U79*$X$8,"") ->  | AA79: =IFERROR($U79*$Y$8,"") -> 
F80: 66 | G80: 108.78 | H80: 26.89 | I80: 25.6 | J80: 24.83 | K80: =G80/G79-1 -> -0.002384446075 | L80: =H80/H79-1 -> -0.0003717472119 | M80: =I80/I79-1 -> -0.001560062402 | N80: =J80/J79-1 -> -0.0008048289738 | P80: 67 | Q80: =RTD("rit2.rtd",,Q$13, "lasthist", $P80) -> 0 | R80: =RTD("rit2.rtd",,R$13, "lasthist", $P80) -> 0 | S80: =RTD("rit2.rtd",,S$13, "lasthist", $P80) -> 0 | T80: =RTD("rit2.rtd",,T$13, "lasthist", $P80) -> 0 | U80: =IFERROR(IF(Q80=0, "", Q80/Q$14-1),"") ->  | V80: =IFERROR(IF(R80=0, "", R80/R$14-1),"") ->  | W80: =IFERROR(IF(S80=0, "", S80/S$14-1),"") ->  | X80: =IFERROR(IF(T80=0, "", T80/T$14-1),"") ->  | AB80: =IFERROR(V80-Y80,"") ->  | AC80: =IFERROR(W80-Z80,"") ->  | AD80: =IFERROR(X80-AA80,"") -> 
F81: 67 | G81: 109.61 | H81: 27.06 | I81: 25.59 | J81: 24.78 | K81: 0.007630079059 | L81: 0.006322052808 | M81: -0.000390625 | N81: -0.002013693113 | P81: =P80+1 -> 68 | Q81: =RTD("rit2.rtd",,Q$13, "lasthist", $P81) -> 0 | R81: =RTD("rit2.rtd",,R$13, "lasthist", $P81) -> 0 | S81: =RTD("rit2.rtd",,S$13, "lasthist", $P81) -> 0 | T81: =RTD("rit2.rtd",,T$13, "lasthist", $P81) -> 0
F82: 68 | G82: 108.69 | H82: 27.08 | I82: 25.63 | J82: 24.92 | K82: -0.008393394763 | L82: 0.0007390983001 | M82: 0.00156311059 | N82: 0.005649717514 | P82: 69 | Q82: =RTD("rit2.rtd",,Q$13, "lasthist", $P82) -> 0 | R82: =RTD("rit2.rtd",,R$13, "lasthist", $P82) -> 0 | S82: =RTD("rit2.rtd",,S$13, "lasthist", $P82) -> 0 | T82: =RTD("rit2.rtd",,T$13, "lasthist", $P82) -> 0
F83: 69 | G83: 107.5 | H83: 26.89 | I83: 25.41 | J83: 25.04 | K83: -0.01094856933 | L83: -0.007016248154 | M83: -0.008583690987 | N83: 0.00481540931 | P83: 70 | Q83: =RTD("rit2.rtd",,Q$13, "lasthist", $P83) -> 0 | R83: =RTD("rit2.rtd",,R$13, "lasthist", $P83) -> 0 | S83: =RTD("rit2.rtd",,S$13, "lasthist", $P83) -> 0 | T83: =RTD("rit2.rtd",,T$13, "lasthist", $P83) -> 0
F84: 70 | G84: 109.13 | H84: 27.21 | I84: 25.55 | J84: 24.92 | K84: 0.0151627907 | L84: 0.0119003347 | M84: 0.005509641873 | N84: -0.004792332268 | P84: 71 | Q84: =RTD("rit2.rtd",,Q$13, "lasthist", $P84) -> 0 | R84: =RTD("rit2.rtd",,R$13, "lasthist", $P84) -> 0 | S84: =RTD("rit2.rtd",,S$13, "lasthist", $P84) -> 0 | T84: =RTD("rit2.rtd",,T$13, "lasthist", $P84) -> 0
F85: 71 | G85: 108.61 | H85: 27.06 | I85: 25.56 | J85: 25.03 | K85: -0.004764959223 | L85: -0.005512679162 | M85: 0.0003913894325 | N85: 0.004414125201 | P85: 72 | Q85: =RTD("rit2.rtd",,Q$13, "lasthist", $P85) -> 0 | R85: =RTD("rit2.rtd",,R$13, "lasthist", $P85) -> 0 | S85: =RTD("rit2.rtd",,S$13, "lasthist", $P85) -> 0 | T85: =RTD("rit2.rtd",,T$13, "lasthist", $P85) -> 0
F86: 72 | G86: 109.63 | H86: 27.2 | I86: 25.71 | J86: 25 | K86: 0.009391400424 | L86: 0.005173688101 | M86: 0.005868544601 | N86: -0.001198561726 | P86: 73 | Q86: =RTD("rit2.rtd",,Q$13, "lasthist", $P86) -> 0 | R86: =RTD("rit2.rtd",,R$13, "lasthist", $P86) -> 0 | S86: =RTD("rit2.rtd",,S$13, "lasthist", $P86) -> 0 | T86: =RTD("rit2.rtd",,T$13, "lasthist", $P86) -> 0
F87: 73 | G87: 108.46 | H87: 27.01 | I87: 25.52 | J87: 25.07 | K87: -0.01067226124 | L87: -0.006985294118 | M87: -0.007390120576 | N87: 0.0028 | P87: 74 | Q87: =RTD("rit2.rtd",,Q$13, "lasthist", $P87) -> 0 | R87: =RTD("rit2.rtd",,R$13, "lasthist", $P87) -> 0 | S87: =RTD("rit2.rtd",,S$13, "lasthist", $P87) -> 0 | T87: =RTD("rit2.rtd",,T$13, "lasthist", $P87) -> 0
F88: 74 | G88: 108.23 | H88: 27 | I88: 25.5 | J88: 25.08 | K88: -0.002120597455 | L88: -0.0003702332469 | M88: -0.0007836990596 | N88: 0.0003988831272 | P88: 75 | Q88: =RTD("rit2.rtd",,Q$13, "lasthist", $P88) -> 0 | R88: =RTD("rit2.rtd",,R$13, "lasthist", $P88) -> 0 | S88: =RTD("rit2.rtd",,S$13, "lasthist", $P88) -> 0 | T88: =RTD("rit2.rtd",,T$13, "lasthist", $P88) -> 0
F89: 75 | G89: 108.15 | H89: 27.03 | I89: 25.5 | J89: 25 | K89: -0.0007391665897 | L89: 0.001111111111 | M89: 0 | N89: -0.003189792663 | P89: 76 | Q89: =RTD("rit2.rtd",,Q$13, "lasthist", $P89) -> 0 | R89: =RTD("rit2.rtd",,R$13, "lasthist", $P89) -> 0 | S89: =RTD("rit2.rtd",,S$13, "lasthist", $P89) -> 0 | T89: =RTD("rit2.rtd",,T$13, "lasthist", $P89) -> 0
F90: 76 | G90: 108.42 | H90: 27.09 | I90: 25.44 | J90: 24.94 | K90: 0.002496532594 | L90: 0.002219755827 | M90: -0.002352941176 | N90: -0.0024 | P90: 77 | Q90: =RTD("rit2.rtd",,Q$13, "lasthist", $P90) -> 0 | R90: =RTD("rit2.rtd",,R$13, "lasthist", $P90) -> 0 | S90: =RTD("rit2.rtd",,S$13, "lasthist", $P90) -> 0 | T90: =RTD("rit2.rtd",,T$13, "lasthist", $P90) -> 0
F91: 77 | G91: 108.12 | H91: 27.03 | I91: 25.38 | J91: 24.94 | K91: -0.002767017156 | L91: -0.002214839424 | M91: -0.002358490566 | N91: 0 | P91: 78 | Q91: =RTD("rit2.rtd",,Q$13, "lasthist", $P91) -> 0 | R91: =RTD("rit2.rtd",,R$13, "lasthist", $P91) -> 0 | S91: =RTD("rit2.rtd",,S$13, "lasthist", $P91) -> 0 | T91: =RTD("rit2.rtd",,T$13, "lasthist", $P91) -> 0
F92: 78 | G92: 107.55 | H92: 27 | I92: 25.37 | J92: 24.86 | K92: -0.005271920089 | L92: -0.001109877913 | M92: -0.0003940110323 | N92: -0.003207698476 | P92: 79 | Q92: =RTD("rit2.rtd",,Q$13, "lasthist", $P92) -> 0 | R92: =RTD("rit2.rtd",,R$13, "lasthist", $P92) -> 0 | S92: =RTD("rit2.rtd",,S$13, "lasthist", $P92) -> 0 | T92: =RTD("rit2.rtd",,T$13, "lasthist", $P92) -> 0
F93: 79 | G93: 106.42 | H93: 26.79 | I93: 25.17 | J93: 24.88 | K93: -0.01050674105 | L93: -0.007777777778 | M93: -0.007883326764 | N93: 0.0008045052293 | P93: 80 | Q93: =RTD("rit2.rtd",,Q$13, "lasthist", $P93) -> 0 | R93: =RTD("rit2.rtd",,R$13, "lasthist", $P93) -> 0 | S93: =RTD("rit2.rtd",,S$13, "lasthist", $P93) -> 0 | T93: =RTD("rit2.rtd",,T$13, "lasthist", $P93) -> 0
F94: 80 | G94: 106.37 | H94: 26.77 | I94: 25.16 | J94: 24.87 | K94: -0.0004698364969 | L94: -0.0007465472191 | M94: -0.0003972983711 | N94: -0.0004019292605 | P94: 81 | Q94: =RTD("rit2.rtd",,Q$13, "lasthist", $P94) -> 0 | R94: =RTD("rit2.rtd",,R$13, "lasthist", $P94) -> 0 | S94: =RTD("rit2.rtd",,S$13, "lasthist", $P94) -> 0 | T94: =RTD("rit2.rtd",,T$13, "lasthist", $P94) -> 0
F95: 81 | G95: 105.33 | H95: 26.59 | I95: 25.05 | J95: 24.94 | K95: -0.009777192818 | L95: -0.006723944714 | M95: -0.004372019078 | N95: 0.002814636108 | P95: 82 | Q95: =RTD("rit2.rtd",,Q$13, "lasthist", $P95) -> 0 | R95: =RTD("rit2.rtd",,R$13, "lasthist", $P95) -> 0 | S95: =RTD("rit2.rtd",,S$13, "lasthist", $P95) -> 0 | T95: =RTD("rit2.rtd",,T$13, "lasthist", $P95) -> 0
F96: 82 | G96: 104.67 | H96: 26.48 | I96: 25.01 | J96: 25 | K96: -0.006266021077 | L96: -0.004136893569 | M96: -0.001596806387 | N96: 0.002405773857 | P96: 83 | Q96: =RTD("rit2.rtd",,Q$13, "lasthist", $P96) -> 0 | R96: =RTD("rit2.rtd",,R$13, "lasthist", $P96) -> 0 | S96: =RTD("rit2.rtd",,S$13, "lasthist", $P96) -> 0 | T96: =RTD("rit2.rtd",,T$13, "lasthist", $P96) -> 0
F97: 83 | G97: 104.04 | H97: 26.36 | I97: 24.96 | J97: 25.04 | K97: -0.006018916595 | L97: -0.004531722054 | M97: -0.00199920032 | N97: 0.0016 | P97: 84 | Q97: =RTD("rit2.rtd",,Q$13, "lasthist", $P97) -> 0 | R97: =RTD("rit2.rtd",,R$13, "lasthist", $P97) -> 0 | S97: =RTD("rit2.rtd",,S$13, "lasthist", $P97) -> 0 | T97: =RTD("rit2.rtd",,T$13, "lasthist", $P97) -> 0
F98: 84 | G98: 103.52 | H98: 26.36 | I98: 24.89 | J98: 24.98 | K98: -0.004998077662 | L98: 0 | M98: -0.002804487179 | N98: -0.002396166134 | P98: 85 | Q98: =RTD("rit2.rtd",,Q$13, "lasthist", $P98) -> 0 | R98: =RTD("rit2.rtd",,R$13, "lasthist", $P98) -> 0 | S98: =RTD("rit2.rtd",,S$13, "lasthist", $P98) -> 0 | T98: =RTD("rit2.rtd",,T$13, "lasthist", $P98) -> 0
F99: 85 | G99: 103.72 | H99: 26.37 | I99: 24.93 | J99: 24.9 | K99: 0.001931993818 | L99: 0.0003793626707 | M99: 0.001607071113 | N99: -0.00320256205 | P99: 86 | Q99: =RTD("rit2.rtd",,Q$13, "lasthist", $P99) -> 0 | R99: =RTD("rit2.rtd",,R$13, "lasthist", $P99) -> 0 | S99: =RTD("rit2.rtd",,S$13, "lasthist", $P99) -> 0 | T99: =RTD("rit2.rtd",,T$13, "lasthist", $P99) -> 0
F100: 86 | G100: 103.73 | H100: 26.37 | I100: 24.93 | J100: 24.84 | K100: 9.641342075e-05 | L100: 0 | M100: 0 | N100: -0.002409638554 | P100: 87 | Q100: =RTD("rit2.rtd",,Q$13, "lasthist", $P100) -> 0 | R100: =RTD("rit2.rtd",,R$13, "lasthist", $P100) -> 0 | S100: =RTD("rit2.rtd",,S$13, "lasthist", $P100) -> 0 | T100: =RTD("rit2.rtd",,T$13, "lasthist", $P100) -> 0
F101: 87 | G101: 104.08 | H101: 26.35 | I101: 24.96 | J101: 24.75 | K101: 0.003374144413 | L101: -0.0007584376185 | M101: 0.001203369434 | N101: -0.003623188406 | P101: 88 | Q101: =RTD("rit2.rtd",,Q$13, "lasthist", $P101) -> 0 | R101: =RTD("rit2.rtd",,R$13, "lasthist", $P101) -> 0 | S101: =RTD("rit2.rtd",,S$13, "lasthist", $P101) -> 0 | T101: =RTD("rit2.rtd",,T$13, "lasthist", $P101) -> 0
F102: 88 | G102: 104.6 | H102: 26.35 | I102: 25.02 | J102: 24.6 | K102: 0.004996156802 | L102: 0 | M102: 0.002403846154 | N102: -0.006060606061 | P102: 89 | Q102: =RTD("rit2.rtd",,Q$13, "lasthist", $P102) -> 0 | R102: =RTD("rit2.rtd",,R$13, "lasthist", $P102) -> 0 | S102: =RTD("rit2.rtd",,S$13, "lasthist", $P102) -> 0 | T102: =RTD("rit2.rtd",,T$13, "lasthist", $P102) -> 0
F103: 89 | G103: 104.43 | H103: 26.31 | I103: 24.96 | J103: 24.63 | K103: -0.001625239006 | L103: -0.001518026565 | M103: -0.002398081535 | N103: 0.001219512195 | P103: 90 | Q103: =RTD("rit2.rtd",,Q$13, "lasthist", $P103) -> 0 | R103: =RTD("rit2.rtd",,R$13, "lasthist", $P103) -> 0 | S103: =RTD("rit2.rtd",,S$13, "lasthist", $P103) -> 0 | T103: =RTD("rit2.rtd",,T$13, "lasthist", $P103) -> 0
F104: 90 | G104: 104.46 | H104: 26.32 | I104: 24.83 | J104: 24.66 | K104: 0.0002872737719 | L104: 0.0003800836184 | M104: -0.005208333333 | N104: 0.001218026797 | P104: 91 | Q104: =RTD("rit2.rtd",,Q$13, "lasthist", $P104) -> 0 | R104: =RTD("rit2.rtd",,R$13, "lasthist", $P104) -> 0 | S104: =RTD("rit2.rtd",,S$13, "lasthist", $P104) -> 0 | T104: =RTD("rit2.rtd",,T$13, "lasthist", $P104) -> 0
F105: 91 | G105: 104.04 | H105: 26.22 | I105: 24.74 | J105: 24.66 | K105: -0.004020677771 | L105: -0.003799392097 | M105: -0.003624647604 | N105: 0 | P105: 92 | Q105: =RTD("rit2.rtd",,Q$13, "lasthist", $P105) -> 0 | R105: =RTD("rit2.rtd",,R$13, "lasthist", $P105) -> 0 | S105: =RTD("rit2.rtd",,S$13, "lasthist", $P105) -> 0 | T105: =RTD("rit2.rtd",,T$13, "lasthist", $P105) -> 0
F106: 92 | G106: 104.19 | H106: 26.34 | I106: 24.79 | J106: 24.71 | K106: 0.001441753172 | L106: 0.004576659039 | M106: 0.002021018593 | N106: 0.00202757502 | P106: 93 | Q106: =RTD("rit2.rtd",,Q$13, "lasthist", $P106) -> 0 | R106: =RTD("rit2.rtd",,R$13, "lasthist", $P106) -> 0 | S106: =RTD("rit2.rtd",,S$13, "lasthist", $P106) -> 0 | T106: =RTD("rit2.rtd",,T$13, "lasthist", $P106) -> 0
F107: 93 | G107: 104.68 | H107: 26.4 | I107: 24.84 | J107: 24.64 | K107: 0.00470294654 | L107: 0.002277904328 | M107: 0.002016942315 | N107: -0.00283286119 | P107: 94 | Q107: =RTD("rit2.rtd",,Q$13, "lasthist", $P107) -> 0 | R107: =RTD("rit2.rtd",,R$13, "lasthist", $P107) -> 0 | S107: =RTD("rit2.rtd",,S$13, "lasthist", $P107) -> 0 | T107: =RTD("rit2.rtd",,T$13, "lasthist", $P107) -> 0
F108: 94 | G108: 104.58 | H108: 26.4 | I108: 24.75 | J108: 24.69 | K108: -0.0009552923194 | L108: 0 | M108: -0.003623188406 | N108: 0.002029220779 | P108: 95 | Q108: =RTD("rit2.rtd",,Q$13, "lasthist", $P108) -> 0 | R108: =RTD("rit2.rtd",,R$13, "lasthist", $P108) -> 0 | S108: =RTD("rit2.rtd",,S$13, "lasthist", $P108) -> 0 | T108: =RTD("rit2.rtd",,T$13, "lasthist", $P108) -> 0
F109: 95 | G109: 103.4 | H109: 26.25 | I109: 24.53 | J109: 24.77 | K109: -0.01128322815 | L109: -0.005681818182 | M109: -0.008888888889 | N109: 0.00324017821 | P109: 96 | Q109: =RTD("rit2.rtd",,Q$13, "lasthist", $P109) -> 0 | R109: =RTD("rit2.rtd",,R$13, "lasthist", $P109) -> 0 | S109: =RTD("rit2.rtd",,S$13, "lasthist", $P109) -> 0 | T109: =RTD("rit2.rtd",,T$13, "lasthist", $P109) -> 0
F110: 96 | G110: 103.46 | H110: 26.16 | I110: 24.63 | J110: 24.75 | K110: 0.000580270793 | L110: -0.003428571429 | M110: 0.004076640848 | N110: -0.0008074283407 | P110: 97 | Q110: =RTD("rit2.rtd",,Q$13, "lasthist", $P110) -> 0 | R110: =RTD("rit2.rtd",,R$13, "lasthist", $P110) -> 0 | S110: =RTD("rit2.rtd",,S$13, "lasthist", $P110) -> 0 | T110: =RTD("rit2.rtd",,T$13, "lasthist", $P110) -> 0
F111: 97 | G111: 103.79 | H111: 26.29 | I111: 24.71 | J111: 24.71 | K111: 0.003189638508 | L111: 0.00496941896 | M111: 0.003248071458 | N111: -0.001616161616 | P111: 98 | Q111: =RTD("rit2.rtd",,Q$13, "lasthist", $P111) -> 0 | R111: =RTD("rit2.rtd",,R$13, "lasthist", $P111) -> 0 | S111: =RTD("rit2.rtd",,S$13, "lasthist", $P111) -> 0 | T111: =RTD("rit2.rtd",,T$13, "lasthist", $P111) -> 0
F112: 98 | G112: 103.79 | H112: 26.17 | I112: 24.68 | J112: 24.73 | K112: 0 | L112: -0.004564473184 | M112: -0.001214083367 | N112: 0.0008093889114 | P112: 99 | Q112: =RTD("rit2.rtd",,Q$13, "lasthist", $P112) -> 0 | R112: =RTD("rit2.rtd",,R$13, "lasthist", $P112) -> 0 | S112: =RTD("rit2.rtd",,S$13, "lasthist", $P112) -> 0 | T112: =RTD("rit2.rtd",,T$13, "lasthist", $P112) -> 0
F113: 99 | G113: 104.31 | H113: 26.27 | I113: 24.74 | J113: 24.71 | K113: 0.005010116582 | L113: 0.003821169278 | M113: 0.002431118314 | N113: -0.0008087343308 | P113: 100 | Q113: =RTD("rit2.rtd",,Q$13, "lasthist", $P113) -> 0 | R113: =RTD("rit2.rtd",,R$13, "lasthist", $P113) -> 0 | S113: =RTD("rit2.rtd",,S$13, "lasthist", $P113) -> 0 | T113: =RTD("rit2.rtd",,T$13, "lasthist", $P113) -> 0
F114: 100 | G114: 104.68 | H114: 26.2 | I114: 24.73 | J114: 24.81 | K114: 0.003547119164 | L114: -0.002664636467 | M114: -0.0004042037187 | N114: 0.004046944557 | P114: 101 | Q114: =RTD("rit2.rtd",,Q$13, "lasthist", $P114) -> 0 | R114: =RTD("rit2.rtd",,R$13, "lasthist", $P114) -> 0 | S114: =RTD("rit2.rtd",,S$13, "lasthist", $P114) -> 0 | T114: =RTD("rit2.rtd",,T$13, "lasthist", $P114) -> 0
F115: 101 | G115: 104.17 | H115: 26.12 | I115: 24.62 | J115: 24.83 | K115: -0.004871990829 | L115: -0.003053435115 | M115: -0.004448038819 | N115: 0.0008061265619 | P115: 102 | Q115: =RTD("rit2.rtd",,Q$13, "lasthist", $P115) -> 0 | R115: =RTD("rit2.rtd",,R$13, "lasthist", $P115) -> 0 | S115: =RTD("rit2.rtd",,S$13, "lasthist", $P115) -> 0 | T115: =RTD("rit2.rtd",,T$13, "lasthist", $P115) -> 0
F116: 102 | G116: 103.83 | H116: 26.12 | I116: 24.66 | J116: 24.81 | K116: -0.003263895555 | L116: 0 | M116: 0.00162469537 | N116: -0.0008054772453 | P116: 103 | Q116: =RTD("rit2.rtd",,Q$13, "lasthist", $P116) -> 0 | R116: =RTD("rit2.rtd",,R$13, "lasthist", $P116) -> 0 | S116: =RTD("rit2.rtd",,S$13, "lasthist", $P116) -> 0 | T116: =RTD("rit2.rtd",,T$13, "lasthist", $P116) -> 0
F117: 103 | G117: 103.77 | H117: 26.2 | I117: 24.6 | J117: 24.86 | K117: -0.0005778676683 | L117: 0.003062787136 | M117: -0.002433090024 | N117: 0.002015316405 | P117: 104 | Q117: =RTD("rit2.rtd",,Q$13, "lasthist", $P117) -> 0 | R117: =RTD("rit2.rtd",,R$13, "lasthist", $P117) -> 0 | S117: =RTD("rit2.rtd",,S$13, "lasthist", $P117) -> 0 | T117: =RTD("rit2.rtd",,T$13, "lasthist", $P117) -> 0
F118: 104 | G118: 104.2 | H118: 26.28 | I118: 24.66 | J118: 24.81 | K118: 0.004143779512 | L118: 0.003053435115 | M118: 0.00243902439 | N118: -0.002011263073 | P118: 105 | Q118: =RTD("rit2.rtd",,Q$13, "lasthist", $P118) -> 0 | R118: =RTD("rit2.rtd",,R$13, "lasthist", $P118) -> 0 | S118: =RTD("rit2.rtd",,S$13, "lasthist", $P118) -> 0 | T118: =RTD("rit2.rtd",,T$13, "lasthist", $P118) -> 0
F119: 105 | G119: 104.29 | H119: 26.32 | I119: 24.75 | J119: 24.8 | K119: 0.0008637236084 | L119: 0.001522070015 | M119: 0.003649635036 | N119: -0.0004030632809 | P119: 106 | Q119: =RTD("rit2.rtd",,Q$13, "lasthist", $P119) -> 0 | R119: =RTD("rit2.rtd",,R$13, "lasthist", $P119) -> 0 | S119: =RTD("rit2.rtd",,S$13, "lasthist", $P119) -> 0 | T119: =RTD("rit2.rtd",,T$13, "lasthist", $P119) -> 0
F120: 106 | G120: 105.37 | H120: 26.5 | I120: 24.81 | J120: 24.83 | K120: 0.01035573881 | L120: 0.006838905775 | M120: 0.002424242424 | N120: 0.001209677419 | P120: 107 | Q120: =RTD("rit2.rtd",,Q$13, "lasthist", $P120) -> 0 | R120: =RTD("rit2.rtd",,R$13, "lasthist", $P120) -> 0 | S120: =RTD("rit2.rtd",,S$13, "lasthist", $P120) -> 0 | T120: =RTD("rit2.rtd",,T$13, "lasthist", $P120) -> 0
F121: 107 | G121: 105.87 | H121: 26.5 | I121: 24.7 | J121: 24.8 | K121: 0.004745183639 | L121: 0 | M121: -0.00443369609 | N121: -0.001208215868 | P121: 108 | Q121: =RTD("rit2.rtd",,Q$13, "lasthist", $P121) -> 0 | R121: =RTD("rit2.rtd",,R$13, "lasthist", $P121) -> 0 | S121: =RTD("rit2.rtd",,S$13, "lasthist", $P121) -> 0 | T121: =RTD("rit2.rtd",,T$13, "lasthist", $P121) -> 0
F122: 108 | G122: 105.96 | H122: 26.54 | I122: 24.64 | J122: 24.95 | K122: 0.0008500991782 | L122: 0.001509433962 | M122: -0.002429149798 | N122: 0.006048387097 | P122: 109 | Q122: =RTD("rit2.rtd",,Q$13, "lasthist", $P122) -> 0 | R122: =RTD("rit2.rtd",,R$13, "lasthist", $P122) -> 0 | S122: =RTD("rit2.rtd",,S$13, "lasthist", $P122) -> 0 | T122: =RTD("rit2.rtd",,T$13, "lasthist", $P122) -> 0
F123: 109 | G123: 105.73 | H123: 26.5 | I123: 24.62 | J123: 25.08 | K123: -0.002170630427 | L123: -0.001507159005 | M123: -0.0008116883117 | N123: 0.005210420842 | P123: 110 | Q123: =RTD("rit2.rtd",,Q$13, "lasthist", $P123) -> 0 | R123: =RTD("rit2.rtd",,R$13, "lasthist", $P123) -> 0 | S123: =RTD("rit2.rtd",,S$13, "lasthist", $P123) -> 0 | T123: =RTD("rit2.rtd",,T$13, "lasthist", $P123) -> 0
F124: 110 | G124: 104.98 | H124: 26.39 | I124: 24.55 | J124: 25.12 | K124: -0.007093540149 | L124: -0.004150943396 | M124: -0.002843216897 | N124: 0.001594896332 | P124: 111 | Q124: =RTD("rit2.rtd",,Q$13, "lasthist", $P124) -> 0 | R124: =RTD("rit2.rtd",,R$13, "lasthist", $P124) -> 0 | S124: =RTD("rit2.rtd",,S$13, "lasthist", $P124) -> 0 | T124: =RTD("rit2.rtd",,T$13, "lasthist", $P124) -> 0
F125: 111 | G125: 104.47 | H125: 26.26 | I125: 24.57 | J125: 25.14 | K125: -0.004858068203 | L125: -0.004926108374 | M125: 0.0008146639511 | N125: 0.0007961783439 | P125: 112 | Q125: =RTD("rit2.rtd",,Q$13, "lasthist", $P125) -> 0 | R125: =RTD("rit2.rtd",,R$13, "lasthist", $P125) -> 0 | S125: =RTD("rit2.rtd",,S$13, "lasthist", $P125) -> 0 | T125: =RTD("rit2.rtd",,T$13, "lasthist", $P125) -> 0
F126: 112 | G126: 103.92 | H126: 26.05 | I126: 24.41 | J126: 25.11 | K126: -0.005264669283 | L126: -0.007996953542 | M126: -0.006512006512 | N126: -0.001193317422 | P126: 113 | Q126: =RTD("rit2.rtd",,Q$13, "lasthist", $P126) -> 0 | R126: =RTD("rit2.rtd",,R$13, "lasthist", $P126) -> 0 | S126: =RTD("rit2.rtd",,S$13, "lasthist", $P126) -> 0 | T126: =RTD("rit2.rtd",,T$13, "lasthist", $P126) -> 0
F127: 113 | G127: 104.41 | H127: 26.16 | I127: 24.44 | J127: 25.15 | K127: 0.004715165512 | L127: 0.004222648752 | M127: 0.001229004506 | N127: 0.00159299084 | P127: 114 | Q127: =RTD("rit2.rtd",,Q$13, "lasthist", $P127) -> 0 | R127: =RTD("rit2.rtd",,R$13, "lasthist", $P127) -> 0 | S127: =RTD("rit2.rtd",,S$13, "lasthist", $P127) -> 0 | T127: =RTD("rit2.rtd",,T$13, "lasthist", $P127) -> 0
F128: 114 | G128: 104.94 | H128: 26.27 | I128: 24.55 | J128: 25.12 | K128: 0.005076142132 | L128: 0.004204892966 | M128: 0.004500818331 | N128: -0.001192842942 | P128: 115 | Q128: =RTD("rit2.rtd",,Q$13, "lasthist", $P128) -> 0 | R128: =RTD("rit2.rtd",,R$13, "lasthist", $P128) -> 0 | S128: =RTD("rit2.rtd",,S$13, "lasthist", $P128) -> 0 | T128: =RTD("rit2.rtd",,T$13, "lasthist", $P128) -> 0
F129: 115 | G129: 104.51 | H129: 26.19 | I129: 24.54 | J129: 25.08 | K129: -0.004097579569 | L129: -0.00304529882 | M129: -0.0004073319756 | N129: -0.001592356688 | P129: 116 | Q129: =RTD("rit2.rtd",,Q$13, "lasthist", $P129) -> 0 | R129: =RTD("rit2.rtd",,R$13, "lasthist", $P129) -> 0 | S129: =RTD("rit2.rtd",,S$13, "lasthist", $P129) -> 0 | T129: =RTD("rit2.rtd",,T$13, "lasthist", $P129) -> 0
F130: 116 | G130: 104.65 | H130: 26.08 | I130: 24.63 | J130: 25.14 | K130: 0.001339584729 | L130: -0.004200076365 | M130: 0.003667481663 | N130: 0.002392344498 | P130: 117 | Q130: =RTD("rit2.rtd",,Q$13, "lasthist", $P130) -> 0 | R130: =RTD("rit2.rtd",,R$13, "lasthist", $P130) -> 0 | S130: =RTD("rit2.rtd",,S$13, "lasthist", $P130) -> 0 | T130: =RTD("rit2.rtd",,T$13, "lasthist", $P130) -> 0
F131: 117 | G131: 104.38 | H131: 26.1 | I131: 24.59 | J131: 25.14 | K131: -0.002580028667 | L131: 0.0007668711656 | M131: -0.001624035729 | N131: 0 | P131: 118 | Q131: =RTD("rit2.rtd",,Q$13, "lasthist", $P131) -> 0 | R131: =RTD("rit2.rtd",,R$13, "lasthist", $P131) -> 0 | S131: =RTD("rit2.rtd",,S$13, "lasthist", $P131) -> 0 | T131: =RTD("rit2.rtd",,T$13, "lasthist", $P131) -> 0
F132: 118 | G132: 104.07 | H132: 26.01 | I132: 24.51 | J132: 25.16 | K132: -0.002969917609 | L132: -0.003448275862 | M132: -0.003253355022 | N132: 0.0007955449483 | P132: 119 | Q132: =RTD("rit2.rtd",,Q$13, "lasthist", $P132) -> 0 | R132: =RTD("rit2.rtd",,R$13, "lasthist", $P132) -> 0 | S132: =RTD("rit2.rtd",,S$13, "lasthist", $P132) -> 0 | T132: =RTD("rit2.rtd",,T$13, "lasthist", $P132) -> 0
F133: 119 | G133: 103.99 | H133: 26.07 | I133: 24.45 | J133: 25.24 | K133: -0.000768713366 | L133: 0.002306805075 | M133: -0.002447980416 | N133: 0.003179650238 | P133: 120 | Q133: =RTD("rit2.rtd",,Q$13, "lasthist", $P133) -> 0 | R133: =RTD("rit2.rtd",,R$13, "lasthist", $P133) -> 0 | S133: =RTD("rit2.rtd",,S$13, "lasthist", $P133) -> 0 | T133: =RTD("rit2.rtd",,T$13, "lasthist", $P133) -> 0
F134: 120 | G134: 104.24 | H134: 26.1 | I134: 24.4 | J134: 25.06 | K134: 0.002404077315 | L134: 0.001150747986 | M134: -0.002044989775 | N134: -0.007131537242 | P134: 121 | Q134: =RTD("rit2.rtd",,Q$13, "lasthist", $P134) -> 0 | R134: =RTD("rit2.rtd",,R$13, "lasthist", $P134) -> 0 | S134: =RTD("rit2.rtd",,S$13, "lasthist", $P134) -> 0 | T134: =RTD("rit2.rtd",,T$13, "lasthist", $P134) -> 0
F135: 121 | G135: 103.07 | H135: 25.84 | I135: 24.23 | J135: 25.14 | K135: -0.01122409823 | L135: -0.009961685824 | M135: -0.006967213115 | N135: 0.003192338388 | P135: 122 | Q135: =RTD("rit2.rtd",,Q$13, "lasthist", $P135) -> 0 | R135: =RTD("rit2.rtd",,R$13, "lasthist", $P135) -> 0 | S135: =RTD("rit2.rtd",,S$13, "lasthist", $P135) -> 0 | T135: =RTD("rit2.rtd",,T$13, "lasthist", $P135) -> 0
F136: 122 | G136: 102.48 | H136: 25.8 | I136: 24.03 | J136: 25.19 | K136: -0.005724265063 | L136: -0.001547987616 | M136: -0.008254230293 | N136: 0.001988862371 | P136: 123 | Q136: =RTD("rit2.rtd",,Q$13, "lasthist", $P136) -> 0 | R136: =RTD("rit2.rtd",,R$13, "lasthist", $P136) -> 0 | S136: =RTD("rit2.rtd",,S$13, "lasthist", $P136) -> 0 | T136: =RTD("rit2.rtd",,T$13, "lasthist", $P136) -> 0
F137: 123 | G137: 101.24 | H137: 25.58 | I137: 23.91 | J137: 25.35 | K137: -0.01209992194 | L137: -0.008527131783 | M137: -0.004993757803 | N137: 0.006351726876 | P137: 124 | Q137: =RTD("rit2.rtd",,Q$13, "lasthist", $P137) -> 0 | R137: =RTD("rit2.rtd",,R$13, "lasthist", $P137) -> 0 | S137: =RTD("rit2.rtd",,S$13, "lasthist", $P137) -> 0 | T137: =RTD("rit2.rtd",,T$13, "lasthist", $P137) -> 0
F138: 124 | G138: 100.65 | H138: 25.4 | I138: 23.93 | J138: 25.34 | K138: -0.005827736073 | L138: -0.007036747459 | M138: 0.0008364700962 | N138: -0.0003944773176 | P138: 125 | Q138: =RTD("rit2.rtd",,Q$13, "lasthist", $P138) -> 0 | R138: =RTD("rit2.rtd",,R$13, "lasthist", $P138) -> 0 | S138: =RTD("rit2.rtd",,S$13, "lasthist", $P138) -> 0 | T138: =RTD("rit2.rtd",,T$13, "lasthist", $P138) -> 0
F139: 125 | G139: 101.18 | H139: 25.49 | I139: 24.05 | J139: 25.23 | K139: 0.005265772479 | L139: 0.003543307087 | M139: 0.005014625992 | N139: -0.004340962904 | P139: 126 | Q139: =RTD("rit2.rtd",,Q$13, "lasthist", $P139) -> 0 | R139: =RTD("rit2.rtd",,R$13, "lasthist", $P139) -> 0 | S139: =RTD("rit2.rtd",,S$13, "lasthist", $P139) -> 0 | T139: =RTD("rit2.rtd",,T$13, "lasthist", $P139) -> 0
F140: 126 | G140: 100.42 | H140: 25.42 | I140: 23.88 | J140: 25.29 | K140: -0.007511365883 | L140: -0.002746174971 | M140: -0.007068607069 | N140: 0.002378121284 | P140: 127 | Q140: =RTD("rit2.rtd",,Q$13, "lasthist", $P140) -> 0 | R140: =RTD("rit2.rtd",,R$13, "lasthist", $P140) -> 0 | S140: =RTD("rit2.rtd",,S$13, "lasthist", $P140) -> 0 | T140: =RTD("rit2.rtd",,T$13, "lasthist", $P140) -> 0
F141: 127 | G141: 99.43 | H141: 25.39 | I141: 23.8 | J141: 25.38 | K141: -0.009858593906 | L141: -0.001180173092 | M141: -0.003350083752 | N141: 0.003558718861 | P141: 128 | Q141: =RTD("rit2.rtd",,Q$13, "lasthist", $P141) -> 0 | R141: =RTD("rit2.rtd",,R$13, "lasthist", $P141) -> 0 | S141: =RTD("rit2.rtd",,S$13, "lasthist", $P141) -> 0 | T141: =RTD("rit2.rtd",,T$13, "lasthist", $P141) -> 0
F142: 128 | G142: 99.34 | H142: 25.28 | I142: 23.91 | J142: 25.41 | K142: -0.0009051594086 | L142: -0.004332414336 | M142: 0.004621848739 | N142: 0.001182033097 | P142: 129 | Q142: =RTD("rit2.rtd",,Q$13, "lasthist", $P142) -> 0 | R142: =RTD("rit2.rtd",,R$13, "lasthist", $P142) -> 0 | S142: =RTD("rit2.rtd",,S$13, "lasthist", $P142) -> 0 | T142: =RTD("rit2.rtd",,T$13, "lasthist", $P142) -> 0
F143: 129 | G143: 99.43 | H143: 25.29 | I143: 23.91 | J143: 25.5 | K143: 0.0009059794645 | L143: 0.0003955696203 | M143: 0 | N143: 0.003541912633 | P143: 130 | Q143: =RTD("rit2.rtd",,Q$13, "lasthist", $P143) -> 0 | R143: =RTD("rit2.rtd",,R$13, "lasthist", $P143) -> 0 | S143: =RTD("rit2.rtd",,S$13, "lasthist", $P143) -> 0 | T143: =RTD("rit2.rtd",,T$13, "lasthist", $P143) -> 0 | Y143: =IFERROR($U143*$W$8,"") ->  | Z143: =IFERROR($U143*$X$8,"") ->  | AA143: =IFERROR($U143*$Y$8,"") -> 
F144: 130 | G144: 99.48 | H144: 25.27 | I144: 24.03 | J144: 25.5 | K144: =G144/G143-1 -> 0.0005028663381 | L144: =H144/H143-1 -> -0.0007908264136 | M144: =I144/I143-1 -> 0.005018820577 | N144: =J144/J143-1 -> 0 | P144: 131 | Q144: =RTD("rit2.rtd",,Q$13, "lasthist", $P144) -> 0 | R144: =RTD("rit2.rtd",,R$13, "lasthist", $P144) -> 0 | S144: =RTD("rit2.rtd",,S$13, "lasthist", $P144) -> 0 | T144: =RTD("rit2.rtd",,T$13, "lasthist", $P144) -> 0 | U144: =IFERROR(IF(Q144=0, "", Q144/Q$14-1),"") ->  | V144: =IFERROR(IF(R144=0, "", R144/R$14-1),"") ->  | W144: =IFERROR(IF(S144=0, "", S144/S$14-1),"") ->  | X144: =IFERROR(IF(T144=0, "", T144/T$14-1),"") ->  | AB144: =IFERROR(V144-Y144,"") ->  | AC144: =IFERROR(W144-Z144,"") ->  | AD144: =IFERROR(X144-AA144,"") -> 
F145: 131 | G145: 99.29 | H145: 25.25 | I145: 24.01 | J145: 25.49 | K145: -0.001909931645 | L145: -0.000791452315 | M145: -0.0008322929671 | N145: -0.0003921568627 | P145: =P144+1 -> 132 | Q145: =RTD("rit2.rtd",,Q$13, "lasthist", $P145) -> 0 | R145: =RTD("rit2.rtd",,R$13, "lasthist", $P145) -> 0 | S145: =RTD("rit2.rtd",,S$13, "lasthist", $P145) -> 0 | T145: =RTD("rit2.rtd",,T$13, "lasthist", $P145) -> 0
F146: 132 | G146: 99.83 | H146: 25.43 | I146: 24.02 | J146: 25.48 | K146: 0.005438614161 | L146: 0.007128712871 | M146: 0.0004164931279 | N146: -0.0003923107101 | P146: 133 | Q146: =RTD("rit2.rtd",,Q$13, "lasthist", $P146) -> 0 | R146: =RTD("rit2.rtd",,R$13, "lasthist", $P146) -> 0 | S146: =RTD("rit2.rtd",,S$13, "lasthist", $P146) -> 0 | T146: =RTD("rit2.rtd",,T$13, "lasthist", $P146) -> 0
F147: 133 | G147: 100.35 | H147: 25.42 | I147: 24.08 | J147: 25.3 | K147: 0.005208855054 | L147: -0.000393236335 | M147: 0.002497918401 | N147: -0.007064364207 | P147: 134 | Q147: =RTD("rit2.rtd",,Q$13, "lasthist", $P147) -> 0 | R147: =RTD("rit2.rtd",,R$13, "lasthist", $P147) -> 0 | S147: =RTD("rit2.rtd",,S$13, "lasthist", $P147) -> 0 | T147: =RTD("rit2.rtd",,T$13, "lasthist", $P147) -> 0
F148: 134 | G148: 99.73 | H148: 25.19 | I148: 24.01 | J148: 25.4 | K148: -0.006178375685 | L148: -0.009047993706 | M148: -0.002906976744 | N148: 0.00395256917 | P148: 135 | Q148: =RTD("rit2.rtd",,Q$13, "lasthist", $P148) -> 0 | R148: =RTD("rit2.rtd",,R$13, "lasthist", $P148) -> 0 | S148: =RTD("rit2.rtd",,S$13, "lasthist", $P148) -> 0 | T148: =RTD("rit2.rtd",,T$13, "lasthist", $P148) -> 0
F149: 135 | G149: 100.08 | H149: 25.16 | I149: 24.02 | J149: 25.37 | K149: 0.003509475584 | L149: -0.001190948789 | M149: 0.0004164931279 | N149: -0.001181102362 | P149: 136 | Q149: =RTD("rit2.rtd",,Q$13, "lasthist", $P149) -> 0 | R149: =RTD("rit2.rtd",,R$13, "lasthist", $P149) -> 0 | S149: =RTD("rit2.rtd",,S$13, "lasthist", $P149) -> 0 | T149: =RTD("rit2.rtd",,T$13, "lasthist", $P149) -> 0
F150: 136 | G150: 99.82 | H150: 25.17 | I150: 23.93 | J150: 25.41 | K150: -0.002597921663 | L150: 0.0003974562798 | M150: -0.003746877602 | N150: 0.001576665353 | P150: 137 | Q150: =RTD("rit2.rtd",,Q$13, "lasthist", $P150) -> 0 | R150: =RTD("rit2.rtd",,R$13, "lasthist", $P150) -> 0 | S150: =RTD("rit2.rtd",,S$13, "lasthist", $P150) -> 0 | T150: =RTD("rit2.rtd",,T$13, "lasthist", $P150) -> 0
F151: 137 | G151: 98.99 | H151: 24.99 | I151: 23.84 | J151: 25.51 | K151: -0.00831496694 | L151: -0.007151370679 | M151: -0.003760969494 | N151: 0.003935458481 | P151: 138 | Q151: =RTD("rit2.rtd",,Q$13, "lasthist", $P151) -> 0 | R151: =RTD("rit2.rtd",,R$13, "lasthist", $P151) -> 0 | S151: =RTD("rit2.rtd",,S$13, "lasthist", $P151) -> 0 | T151: =RTD("rit2.rtd",,T$13, "lasthist", $P151) -> 0
F152: 138 | G152: 99.19 | H152: 25.13 | I152: 23.79 | J152: 25.41 | K152: 0.002020406102 | L152: 0.005602240896 | M152: -0.002097315436 | N152: -0.00392003136 | P152: 139 | Q152: =RTD("rit2.rtd",,Q$13, "lasthist", $P152) -> 0 | R152: =RTD("rit2.rtd",,R$13, "lasthist", $P152) -> 0 | S152: =RTD("rit2.rtd",,S$13, "lasthist", $P152) -> 0 | T152: =RTD("rit2.rtd",,T$13, "lasthist", $P152) -> 0
F153: 139 | G153: 99.19 | H153: 25.11 | I153: 23.78 | J153: 25.38 | K153: 0 | L153: -0.0007958615201 | M153: -0.0004203446826 | N153: -0.001180637544 | P153: 140 | Q153: =RTD("rit2.rtd",,Q$13, "lasthist", $P153) -> 0 | R153: =RTD("rit2.rtd",,R$13, "lasthist", $P153) -> 0 | S153: =RTD("rit2.rtd",,S$13, "lasthist", $P153) -> 0 | T153: =RTD("rit2.rtd",,T$13, "lasthist", $P153) -> 0
F154: 140 | G154: 100.13 | H154: 25.28 | I154: 23.86 | J154: 25.21 | K154: 0.00947676177 | L154: 0.006770211071 | M154: 0.003364171573 | N154: -0.006698187549 | P154: 141 | Q154: =RTD("rit2.rtd",,Q$13, "lasthist", $P154) -> 0 | R154: =RTD("rit2.rtd",,R$13, "lasthist", $P154) -> 0 | S154: =RTD("rit2.rtd",,S$13, "lasthist", $P154) -> 0 | T154: =RTD("rit2.rtd",,T$13, "lasthist", $P154) -> 0
F155: 141 | G155: 99.72 | H155: 25.17 | I155: 23.88 | J155: 25.29 | K155: -0.00409467692 | L155: -0.004351265823 | M155: 0.0008382229673 | N155: 0.003173343911 | P155: 142 | Q155: =RTD("rit2.rtd",,Q$13, "lasthist", $P155) -> 0 | R155: =RTD("rit2.rtd",,R$13, "lasthist", $P155) -> 0 | S155: =RTD("rit2.rtd",,S$13, "lasthist", $P155) -> 0 | T155: =RTD("rit2.rtd",,T$13, "lasthist", $P155) -> 0
F156: 142 | G156: 99.85 | H156: 25.24 | I156: 24 | J156: 25.2 | K156: 0.001303650221 | L156: 0.002781088598 | M156: 0.005025125628 | N156: -0.003558718861 | P156: 143 | Q156: =RTD("rit2.rtd",,Q$13, "lasthist", $P156) -> 0 | R156: =RTD("rit2.rtd",,R$13, "lasthist", $P156) -> 0 | S156: =RTD("rit2.rtd",,S$13, "lasthist", $P156) -> 0 | T156: =RTD("rit2.rtd",,T$13, "lasthist", $P156) -> 0
F157: 143 | G157: 100.76 | H157: 25.31 | I157: 24.12 | J157: 25.08 | K157: 0.009113670506 | L157: 0.002773375594 | M157: 0.005 | N157: -0.004761904762 | P157: 144 | Q157: =RTD("rit2.rtd",,Q$13, "lasthist", $P157) -> 0 | R157: =RTD("rit2.rtd",,R$13, "lasthist", $P157) -> 0 | S157: =RTD("rit2.rtd",,S$13, "lasthist", $P157) -> 0 | T157: =RTD("rit2.rtd",,T$13, "lasthist", $P157) -> 0
F158: 144 | G158: 101.16 | H158: 25.33 | I158: 24.24 | J158: 25.01 | K158: 0.003969829297 | L158: 0.0007902015014 | M158: 0.004975124378 | N158: -0.002791068581 | P158: 145 | Q158: =RTD("rit2.rtd",,Q$13, "lasthist", $P158) -> 0 | R158: =RTD("rit2.rtd",,R$13, "lasthist", $P158) -> 0 | S158: =RTD("rit2.rtd",,S$13, "lasthist", $P158) -> 0 | T158: =RTD("rit2.rtd",,T$13, "lasthist", $P158) -> 0
F159: 145 | G159: 101.66 | H159: 25.33 | I159: 24.34 | J159: 24.93 | K159: 0.004942665085 | L159: 0 | M159: 0.004125412541 | N159: -0.003198720512 | P159: 146 | Q159: =RTD("rit2.rtd",,Q$13, "lasthist", $P159) -> 0 | R159: =RTD("rit2.rtd",,R$13, "lasthist", $P159) -> 0 | S159: =RTD("rit2.rtd",,S$13, "lasthist", $P159) -> 0 | T159: =RTD("rit2.rtd",,T$13, "lasthist", $P159) -> 0
F160: 146 | G160: 101.23 | H160: 25.33 | I160: 24.39 | J160: 24.94 | K160: -0.00422978556 | L160: 0 | M160: 0.002054231717 | N160: 0.0004011231448 | P160: 147 | Q160: =RTD("rit2.rtd",,Q$13, "lasthist", $P160) -> 0 | R160: =RTD("rit2.rtd",,R$13, "lasthist", $P160) -> 0 | S160: =RTD("rit2.rtd",,S$13, "lasthist", $P160) -> 0 | T160: =RTD("rit2.rtd",,T$13, "lasthist", $P160) -> 0
F161: 147 | G161: 100.73 | H161: 25.25 | I161: 24.45 | J161: 24.85 | K161: -0.004939247259 | L161: -0.003158310304 | M161: 0.0024600246 | N161: -0.003608660786 | P161: 148 | Q161: =RTD("rit2.rtd",,Q$13, "lasthist", $P161) -> 0 | R161: =RTD("rit2.rtd",,R$13, "lasthist", $P161) -> 0 | S161: =RTD("rit2.rtd",,S$13, "lasthist", $P161) -> 0 | T161: =RTD("rit2.rtd",,T$13, "lasthist", $P161) -> 0
F162: 148 | G162: 100.7 | H162: 25.27 | I162: 24.47 | J162: 24.83 | K162: -0.0002978258711 | L162: 0.0007920792079 | M162: 0.00081799591 | N162: -0.0008048289738 | P162: 149 | Q162: =RTD("rit2.rtd",,Q$13, "lasthist", $P162) -> 0 | R162: =RTD("rit2.rtd",,R$13, "lasthist", $P162) -> 0 | S162: =RTD("rit2.rtd",,S$13, "lasthist", $P162) -> 0 | T162: =RTD("rit2.rtd",,T$13, "lasthist", $P162) -> 0
F163: 149 | G163: 101.16 | H163: 25.3 | I163: 24.66 | J163: 24.59 | K163: 0.004568023833 | L163: 0.001187178472 | M163: 0.007764609726 | N163: -0.009665726943 | P163: 150 | Q163: =RTD("rit2.rtd",,Q$13, "lasthist", $P163) -> 0 | R163: =RTD("rit2.rtd",,R$13, "lasthist", $P163) -> 0 | S163: =RTD("rit2.rtd",,S$13, "lasthist", $P163) -> 0 | T163: =RTD("rit2.rtd",,T$13, "lasthist", $P163) -> 0
F164: 150 | G164: 101.45 | H164: 25.32 | I164: 24.66 | J164: 24.54 | K164: 0.002866745749 | L164: 0.000790513834 | M164: 0 | N164: -0.002033346889 | P164: 151 | Q164: =RTD("rit2.rtd",,Q$13, "lasthist", $P164) -> 0 | R164: =RTD("rit2.rtd",,R$13, "lasthist", $P164) -> 0 | S164: =RTD("rit2.rtd",,S$13, "lasthist", $P164) -> 0 | T164: =RTD("rit2.rtd",,T$13, "lasthist", $P164) -> 0
F165: 151 | G165: 102.65 | H165: 25.52 | I165: 24.78 | J165: 24.49 | K165: 0.01182848694 | L165: 0.007898894155 | M165: 0.004866180049 | N165: -0.002037489813 | P165: 152 | Q165: =RTD("rit2.rtd",,Q$13, "lasthist", $P165) -> 0 | R165: =RTD("rit2.rtd",,R$13, "lasthist", $P165) -> 0 | S165: =RTD("rit2.rtd",,S$13, "lasthist", $P165) -> 0 | T165: =RTD("rit2.rtd",,T$13, "lasthist", $P165) -> 0
F166: 152 | G166: 102.57 | H166: 25.52 | I166: 24.64 | J166: 24.49 | K166: -0.0007793472966 | L166: 0 | M166: -0.005649717514 | N166: 0 | P166: 153 | Q166: =RTD("rit2.rtd",,Q$13, "lasthist", $P166) -> 0 | R166: =RTD("rit2.rtd",,R$13, "lasthist", $P166) -> 0 | S166: =RTD("rit2.rtd",,S$13, "lasthist", $P166) -> 0 | T166: =RTD("rit2.rtd",,T$13, "lasthist", $P166) -> 0
F167: 153 | G167: 101.93 | H167: 25.39 | I167: 24.57 | J167: 24.56 | K167: -0.006239641221 | L167: -0.005094043887 | M167: -0.002840909091 | N167: 0.002858309514 | P167: 154 | Q167: =RTD("rit2.rtd",,Q$13, "lasthist", $P167) -> 0 | R167: =RTD("rit2.rtd",,R$13, "lasthist", $P167) -> 0 | S167: =RTD("rit2.rtd",,S$13, "lasthist", $P167) -> 0 | T167: =RTD("rit2.rtd",,T$13, "lasthist", $P167) -> 0
F168: 154 | G168: 101.49 | H168: 25.38 | I168: 24.49 | J168: 24.62 | K168: -0.004316687923 | L168: -0.0003938558488 | M168: -0.003256003256 | N168: 0.002442996743 | P168: 155 | Q168: =RTD("rit2.rtd",,Q$13, "lasthist", $P168) -> 0 | R168: =RTD("rit2.rtd",,R$13, "lasthist", $P168) -> 0 | S168: =RTD("rit2.rtd",,S$13, "lasthist", $P168) -> 0 | T168: =RTD("rit2.rtd",,T$13, "lasthist", $P168) -> 0
F169: 155 | G169: 101.71 | H169: 25.42 | I169: 24.5 | J169: 24.58 | K169: 0.002167701251 | L169: 0.001576044129 | M169: 0.0004083299306 | N169: -0.00162469537 | P169: 156 | Q169: =RTD("rit2.rtd",,Q$13, "lasthist", $P169) -> 0 | R169: =RTD("rit2.rtd",,R$13, "lasthist", $P169) -> 0 | S169: =RTD("rit2.rtd",,S$13, "lasthist", $P169) -> 0 | T169: =RTD("rit2.rtd",,T$13, "lasthist", $P169) -> 0
F170: 156 | G170: 101.48 | H170: 25.27 | I170: 24.41 | J170: 24.53 | K170: -0.002261331236 | L170: -0.00590086546 | M170: -0.003673469388 | N170: -0.002034174125 | P170: 157 | Q170: =RTD("rit2.rtd",,Q$13, "lasthist", $P170) -> 0 | R170: =RTD("rit2.rtd",,R$13, "lasthist", $P170) -> 0 | S170: =RTD("rit2.rtd",,S$13, "lasthist", $P170) -> 0 | T170: =RTD("rit2.rtd",,T$13, "lasthist", $P170) -> 0
F171: 157 | G171: 100.68 | H171: 25.2 | I171: 24.39 | J171: 24.6 | K171: -0.007883326764 | L171: -0.002770083102 | M171: -0.0008193363376 | N171: 0.002853648594 | P171: 158 | Q171: =RTD("rit2.rtd",,Q$13, "lasthist", $P171) -> 0 | R171: =RTD("rit2.rtd",,R$13, "lasthist", $P171) -> 0 | S171: =RTD("rit2.rtd",,S$13, "lasthist", $P171) -> 0 | T171: =RTD("rit2.rtd",,T$13, "lasthist", $P171) -> 0
F172: 158 | G172: 101.48 | H172: 25.19 | I172: 24.44 | J172: 24.55 | K172: 0.007945967422 | L172: -0.0003968253968 | M172: 0.0020500205 | N172: -0.002032520325 | P172: 159 | Q172: =RTD("rit2.rtd",,Q$13, "lasthist", $P172) -> 0 | R172: =RTD("rit2.rtd",,R$13, "lasthist", $P172) -> 0 | S172: =RTD("rit2.rtd",,S$13, "lasthist", $P172) -> 0 | T172: =RTD("rit2.rtd",,T$13, "lasthist", $P172) -> 0
F173: 159 | G173: 101.3 | H173: 25.16 | I173: 24.45 | J173: 24.59 | K173: -0.001773748522 | L173: -0.001190948789 | M173: 0.0004091653028 | N173: 0.001629327902 | P173: 160 | Q173: =RTD("rit2.rtd",,Q$13, "lasthist", $P173) -> 0 | R173: =RTD("rit2.rtd",,R$13, "lasthist", $P173) -> 0 | S173: =RTD("rit2.rtd",,S$13, "lasthist", $P173) -> 0 | T173: =RTD("rit2.rtd",,T$13, "lasthist", $P173) -> 0
F174: 160 | G174: 101.76 | H174: 25.14 | I174: 24.52 | J174: 24.57 | K174: 0.004540967423 | L174: -0.0007949125596 | M174: 0.002862985685 | N174: -0.0008133387556 | P174: 161 | Q174: =RTD("rit2.rtd",,Q$13, "lasthist", $P174) -> 0 | R174: =RTD("rit2.rtd",,R$13, "lasthist", $P174) -> 0 | S174: =RTD("rit2.rtd",,S$13, "lasthist", $P174) -> 0 | T174: =RTD("rit2.rtd",,T$13, "lasthist", $P174) -> 0
F175: 161 | G175: 101.97 | H175: 25.15 | I175: 24.5 | J175: 24.61 | K175: 0.002063679245 | L175: 0.0003977724741 | M175: -0.0008156606852 | N175: 0.001628001628 | P175: 162 | Q175: =RTD("rit2.rtd",,Q$13, "lasthist", $P175) -> 0 | R175: =RTD("rit2.rtd",,R$13, "lasthist", $P175) -> 0 | S175: =RTD("rit2.rtd",,S$13, "lasthist", $P175) -> 0 | T175: =RTD("rit2.rtd",,T$13, "lasthist", $P175) -> 0
F176: 162 | G176: 102.63 | H176: 25.32 | I176: 24.57 | J176: 24.49 | K176: 0.006472491909 | L176: 0.00675944334 | M176: 0.002857142857 | N176: -0.00487606664 | P176: 163 | Q176: =RTD("rit2.rtd",,Q$13, "lasthist", $P176) -> 0 | R176: =RTD("rit2.rtd",,R$13, "lasthist", $P176) -> 0 | S176: =RTD("rit2.rtd",,S$13, "lasthist", $P176) -> 0 | T176: =RTD("rit2.rtd",,T$13, "lasthist", $P176) -> 0
F177: 163 | G177: 101.49 | H177: 25.15 | I177: 24.48 | J177: 24.57 | K177: -0.0111078632 | L177: -0.006714060032 | M177: -0.003663003663 | N177: 0.003266639445 | P177: 164 | Q177: =RTD("rit2.rtd",,Q$13, "lasthist", $P177) -> 0 | R177: =RTD("rit2.rtd",,R$13, "lasthist", $P177) -> 0 | S177: =RTD("rit2.rtd",,S$13, "lasthist", $P177) -> 0 | T177: =RTD("rit2.rtd",,T$13, "lasthist", $P177) -> 0
F178: 164 | G178: 102.17 | H178: 25.31 | I178: 24.51 | J178: 24.61 | K178: 0.006700167504 | L178: 0.006361829026 | M178: 0.001225490196 | N178: 0.001628001628 | P178: 165 | Q178: =RTD("rit2.rtd",,Q$13, "lasthist", $P178) -> 0 | R178: =RTD("rit2.rtd",,R$13, "lasthist", $P178) -> 0 | S178: =RTD("rit2.rtd",,S$13, "lasthist", $P178) -> 0 | T178: =RTD("rit2.rtd",,T$13, "lasthist", $P178) -> 0
F179: 165 | G179: 102.77 | H179: 25.3 | I179: 24.56 | J179: 24.48 | K179: 0.005872565332 | L179: -0.0003951007507 | M179: 0.00203998368 | N179: -0.005282405526 | P179: 166 | Q179: =RTD("rit2.rtd",,Q$13, "lasthist", $P179) -> 0 | R179: =RTD("rit2.rtd",,R$13, "lasthist", $P179) -> 0 | S179: =RTD("rit2.rtd",,S$13, "lasthist", $P179) -> 0 | T179: =RTD("rit2.rtd",,T$13, "lasthist", $P179) -> 0
F180: 166 | G180: 102.96 | H180: 25.29 | I180: 24.64 | J180: 24.43 | K180: 0.001848788557 | L180: -0.000395256917 | M180: 0.00325732899 | N180: -0.00204248366 | P180: 167 | Q180: =RTD("rit2.rtd",,Q$13, "lasthist", $P180) -> 0 | R180: =RTD("rit2.rtd",,R$13, "lasthist", $P180) -> 0 | S180: =RTD("rit2.rtd",,S$13, "lasthist", $P180) -> 0 | T180: =RTD("rit2.rtd",,T$13, "lasthist", $P180) -> 0
F181: 167 | G181: 102.71 | H181: 25.26 | I181: 24.65 | J181: 24.4 | K181: -0.002428127428 | L181: -0.00118623962 | M181: 0.0004058441558 | N181: -0.001227998363 | P181: 168 | Q181: =RTD("rit2.rtd",,Q$13, "lasthist", $P181) -> 0 | R181: =RTD("rit2.rtd",,R$13, "lasthist", $P181) -> 0 | S181: =RTD("rit2.rtd",,S$13, "lasthist", $P181) -> 0 | T181: =RTD("rit2.rtd",,T$13, "lasthist", $P181) -> 0
F182: 168 | G182: 102 | H182: 25.16 | I182: 24.53 | J182: 24.47 | K182: -0.006912666732 | L182: -0.003958828187 | M182: -0.004868154158 | N182: 0.002868852459 | P182: 169 | Q182: =RTD("rit2.rtd",,Q$13, "lasthist", $P182) -> 0 | R182: =RTD("rit2.rtd",,R$13, "lasthist", $P182) -> 0 | S182: =RTD("rit2.rtd",,S$13, "lasthist", $P182) -> 0 | T182: =RTD("rit2.rtd",,T$13, "lasthist", $P182) -> 0
F183: 169 | G183: 101.64 | H183: 25.13 | I183: 24.6 | J183: 24.55 | K183: -0.003529411765 | L183: -0.001192368839 | M183: 0.002853648594 | N183: 0.003269309358 | P183: 170 | Q183: =RTD("rit2.rtd",,Q$13, "lasthist", $P183) -> 0 | R183: =RTD("rit2.rtd",,R$13, "lasthist", $P183) -> 0 | S183: =RTD("rit2.rtd",,S$13, "lasthist", $P183) -> 0 | T183: =RTD("rit2.rtd",,T$13, "lasthist", $P183) -> 0
F184: 170 | G184: 101.95 | H184: 25.15 | I184: 24.56 | J184: 24.61 | K184: 0.003049980323 | L184: 0.0007958615201 | M184: -0.00162601626 | N184: 0.002443991853 | P184: 171 | Q184: =RTD("rit2.rtd",,Q$13, "lasthist", $P184) -> 0 | R184: =RTD("rit2.rtd",,R$13, "lasthist", $P184) -> 0 | S184: =RTD("rit2.rtd",,S$13, "lasthist", $P184) -> 0 | T184: =RTD("rit2.rtd",,T$13, "lasthist", $P184) -> 0
F185: 171 | G185: 101.32 | H185: 25.03 | I185: 24.48 | J185: 24.75 | K185: -0.006179499755 | L185: -0.004771371769 | M185: -0.00325732899 | N185: 0.005688744413 | P185: 172 | Q185: =RTD("rit2.rtd",,Q$13, "lasthist", $P185) -> 0 | R185: =RTD("rit2.rtd",,R$13, "lasthist", $P185) -> 0 | S185: =RTD("rit2.rtd",,S$13, "lasthist", $P185) -> 0 | T185: =RTD("rit2.rtd",,T$13, "lasthist", $P185) -> 0
F186: 172 | G186: 101.25 | H186: 25.07 | I186: 24.53 | J186: 24.71 | K186: -0.000690880379 | L186: 0.001598082301 | M186: 0.00204248366 | N186: -0.001616161616 | P186: 173 | Q186: =RTD("rit2.rtd",,Q$13, "lasthist", $P186) -> 0 | R186: =RTD("rit2.rtd",,R$13, "lasthist", $P186) -> 0 | S186: =RTD("rit2.rtd",,S$13, "lasthist", $P186) -> 0 | T186: =RTD("rit2.rtd",,T$13, "lasthist", $P186) -> 0
F187: 173 | G187: 100.33 | H187: 24.92 | I187: 24.39 | J187: 24.88 | K187: -0.009086419753 | L187: -0.005983246909 | M187: -0.005707297187 | N187: 0.006879805747 | P187: 174 | Q187: =RTD("rit2.rtd",,Q$13, "lasthist", $P187) -> 0 | R187: =RTD("rit2.rtd",,R$13, "lasthist", $P187) -> 0 | S187: =RTD("rit2.rtd",,S$13, "lasthist", $P187) -> 0 | T187: =RTD("rit2.rtd",,T$13, "lasthist", $P187) -> 0
F188: 174 | G188: 99.34 | H188: 24.84 | I188: 24.39 | J188: 24.94 | K188: -0.009867437456 | L188: -0.003210272873 | M188: 0 | N188: 0.002411575563 | P188: 175 | Q188: =RTD("rit2.rtd",,Q$13, "lasthist", $P188) -> 0 | R188: =RTD("rit2.rtd",,R$13, "lasthist", $P188) -> 0 | S188: =RTD("rit2.rtd",,S$13, "lasthist", $P188) -> 0 | T188: =RTD("rit2.rtd",,T$13, "lasthist", $P188) -> 0
F189: 175 | G189: 99.57 | H189: 24.82 | I189: 24.37 | J189: 24.92 | K189: 0.002315280854 | L189: -0.0008051529791 | M189: -0.0008200082001 | N189: -0.0008019246191 | P189: 176 | Q189: =RTD("rit2.rtd",,Q$13, "lasthist", $P189) -> 0 | R189: =RTD("rit2.rtd",,R$13, "lasthist", $P189) -> 0 | S189: =RTD("rit2.rtd",,S$13, "lasthist", $P189) -> 0 | T189: =RTD("rit2.rtd",,T$13, "lasthist", $P189) -> 0
F190: 176 | G190: 99.93 | H190: 24.96 | I190: 24.45 | J190: 24.84 | K190: 0.003615546851 | L190: 0.005640612409 | M190: 0.003282724661 | N190: -0.003210272873 | P190: 177 | Q190: =RTD("rit2.rtd",,Q$13, "lasthist", $P190) -> 0 | R190: =RTD("rit2.rtd",,R$13, "lasthist", $P190) -> 0 | S190: =RTD("rit2.rtd",,S$13, "lasthist", $P190) -> 0 | T190: =RTD("rit2.rtd",,T$13, "lasthist", $P190) -> 0
F191: 177 | G191: 98.91 | H191: 24.76 | I191: 24.29 | J191: 24.98 | K191: -0.010207145 | L191: -0.008012820513 | M191: -0.00654396728 | N191: 0.005636070853 | P191: 178 | Q191: =RTD("rit2.rtd",,Q$13, "lasthist", $P191) -> 0 | R191: =RTD("rit2.rtd",,R$13, "lasthist", $P191) -> 0 | S191: =RTD("rit2.rtd",,S$13, "lasthist", $P191) -> 0 | T191: =RTD("rit2.rtd",,T$13, "lasthist", $P191) -> 0
F192: 178 | G192: 98.31 | H192: 24.6 | I192: 24.29 | J192: 25.01 | K192: -0.006066120716 | L192: -0.006462035541 | M192: 0 | N192: 0.001200960769 | P192: 179 | Q192: =RTD("rit2.rtd",,Q$13, "lasthist", $P192) -> 0 | R192: =RTD("rit2.rtd",,R$13, "lasthist", $P192) -> 0 | S192: =RTD("rit2.rtd",,S$13, "lasthist", $P192) -> 0 | T192: =RTD("rit2.rtd",,T$13, "lasthist", $P192) -> 0
F193: 179 | G193: 98.33 | H193: 24.74 | I193: 24.29 | J193: 25.11 | K193: 0.000203438104 | L193: 0.005691056911 | M193: 0 | N193: 0.00399840064 | P193: 180 | Q193: =RTD("rit2.rtd",,Q$13, "lasthist", $P193) -> 0 | R193: =RTD("rit2.rtd",,R$13, "lasthist", $P193) -> 0 | S193: =RTD("rit2.rtd",,S$13, "lasthist", $P193) -> 0 | T193: =RTD("rit2.rtd",,T$13, "lasthist", $P193) -> 0
F194: 180 | G194: 98.19 | H194: 24.66 | I194: 24.31 | J194: 25.14 | K194: -0.001423777077 | L194: -0.003233629749 | M194: 0.0008233841087 | N194: 0.00119474313 | P194: 181 | Q194: =RTD("rit2.rtd",,Q$13, "lasthist", $P194) -> 0 | R194: =RTD("rit2.rtd",,R$13, "lasthist", $P194) -> 0 | S194: =RTD("rit2.rtd",,S$13, "lasthist", $P194) -> 0 | T194: =RTD("rit2.rtd",,T$13, "lasthist", $P194) -> 0
F195: 181 | G195: 99.11 | H195: 24.85 | I195: 24.48 | J195: 25.07 | K195: 0.009369589571 | L195: 0.007704785077 | M195: 0.006993006993 | N195: -0.002784407319 | P195: 182 | Q195: =RTD("rit2.rtd",,Q$13, "lasthist", $P195) -> 0 | R195: =RTD("rit2.rtd",,R$13, "lasthist", $P195) -> 0 | S195: =RTD("rit2.rtd",,S$13, "lasthist", $P195) -> 0 | T195: =RTD("rit2.rtd",,T$13, "lasthist", $P195) -> 0
F196: 182 | G196: 99.27 | H196: 24.98 | I196: 24.54 | J196: 25.05 | K196: 0.001614367874 | L196: 0.00523138833 | M196: 0.002450980392 | N196: -0.0007977662545 | P196: 183 | Q196: =RTD("rit2.rtd",,Q$13, "lasthist", $P196) -> 0 | R196: =RTD("rit2.rtd",,R$13, "lasthist", $P196) -> 0 | S196: =RTD("rit2.rtd",,S$13, "lasthist", $P196) -> 0 | T196: =RTD("rit2.rtd",,T$13, "lasthist", $P196) -> 0
F197: 183 | G197: 99.12 | H197: 24.91 | I197: 24.46 | J197: 25.07 | K197: -0.001511030523 | L197: -0.002802241793 | M197: -0.0032599837 | N197: 0.0007984031936 | P197: 184 | Q197: =RTD("rit2.rtd",,Q$13, "lasthist", $P197) -> 0 | R197: =RTD("rit2.rtd",,R$13, "lasthist", $P197) -> 0 | S197: =RTD("rit2.rtd",,S$13, "lasthist", $P197) -> 0 | T197: =RTD("rit2.rtd",,T$13, "lasthist", $P197) -> 0
F198: 184 | G198: 99.44 | H198: 25.02 | I198: 24.55 | J198: 25 | K198: 0.003228410008 | L198: 0.00441589723 | M198: 0.003679476697 | N198: -0.002792181891 | P198: 185 | Q198: =RTD("rit2.rtd",,Q$13, "lasthist", $P198) -> 0 | R198: =RTD("rit2.rtd",,R$13, "lasthist", $P198) -> 0 | S198: =RTD("rit2.rtd",,S$13, "lasthist", $P198) -> 0 | T198: =RTD("rit2.rtd",,T$13, "lasthist", $P198) -> 0
F199: 185 | G199: 99.25 | H199: 24.97 | I199: 24.44 | J199: 24.94 | K199: -0.00191069992 | L199: -0.001998401279 | M199: -0.004480651731 | N199: -0.0024 | P199: 186 | Q199: =RTD("rit2.rtd",,Q$13, "lasthist", $P199) -> 0 | R199: =RTD("rit2.rtd",,R$13, "lasthist", $P199) -> 0 | S199: =RTD("rit2.rtd",,S$13, "lasthist", $P199) -> 0 | T199: =RTD("rit2.rtd",,T$13, "lasthist", $P199) -> 0
F200: 186 | G200: 99.03 | H200: 24.87 | I200: 24.37 | J200: 24.87 | K200: -0.002216624685 | L200: -0.004004805767 | M200: -0.002864157119 | N200: -0.002806736167 | P200: 187 | Q200: =RTD("rit2.rtd",,Q$13, "lasthist", $P200) -> 0 | R200: =RTD("rit2.rtd",,R$13, "lasthist", $P200) -> 0 | S200: =RTD("rit2.rtd",,S$13, "lasthist", $P200) -> 0 | T200: =RTD("rit2.rtd",,T$13, "lasthist", $P200) -> 0
F201: 187 | G201: 99.38 | H201: 24.96 | I201: 24.42 | J201: 24.89 | K201: 0.003534282541 | L201: 0.003618817853 | M201: 0.002051702913 | N201: 0.0008041817451 | P201: 188 | Q201: =RTD("rit2.rtd",,Q$13, "lasthist", $P201) -> 0 | R201: =RTD("rit2.rtd",,R$13, "lasthist", $P201) -> 0 | S201: =RTD("rit2.rtd",,S$13, "lasthist", $P201) -> 0 | T201: =RTD("rit2.rtd",,T$13, "lasthist", $P201) -> 0
F202: 188 | G202: 99.81 | H202: 25.05 | I202: 24.58 | J202: 24.88 | K202: 0.004326826323 | L202: 0.003605769231 | M202: 0.006552006552 | N202: -0.0004017677782 | P202: 189 | Q202: =RTD("rit2.rtd",,Q$13, "lasthist", $P202) -> 0 | R202: =RTD("rit2.rtd",,R$13, "lasthist", $P202) -> 0 | S202: =RTD("rit2.rtd",,S$13, "lasthist", $P202) -> 0 | T202: =RTD("rit2.rtd",,T$13, "lasthist", $P202) -> 0
F203: 189 | G203: 99.78 | H203: 25.04 | I203: 24.6 | J203: 24.9 | K203: -0.0003005710851 | L203: -0.0003992015968 | M203: 0.0008136696501 | N203: 0.0008038585209 | P203: 190 | Q203: =RTD("rit2.rtd",,Q$13, "lasthist", $P203) -> 0 | R203: =RTD("rit2.rtd",,R$13, "lasthist", $P203) -> 0 | S203: =RTD("rit2.rtd",,S$13, "lasthist", $P203) -> 0 | T203: =RTD("rit2.rtd",,T$13, "lasthist", $P203) -> 0
F204: 190 | G204: 99.64 | H204: 24.96 | I204: 24.55 | J204: 24.87 | K204: -0.001403086791 | L204: -0.003194888179 | M204: -0.002032520325 | N204: -0.001204819277 | P204: 191 | Q204: =RTD("rit2.rtd",,Q$13, "lasthist", $P204) -> 0 | R204: =RTD("rit2.rtd",,R$13, "lasthist", $P204) -> 0 | S204: =RTD("rit2.rtd",,S$13, "lasthist", $P204) -> 0 | T204: =RTD("rit2.rtd",,T$13, "lasthist", $P204) -> 0
... 109 more rows
